,Portfolio,Expense Area,Cost Centre,Expense Type,Account Code,Amount,Supplier Name,SupplierId,Pay Date,Transaction No.
INSERTED DETAIL,Resources & Corporate Governance ,Toilet Cleaning,WBC01,Materials,0303,447.00,Arco Limited,100015,30/05/2013,10185511
INSERTED DETAIL,Resources & Corporate Governance ,Grounds Maintenance,WGM00,Materials,0303,554.20,Amberol Ltd,100043,30/05/2013,10185208
INSERTED DETAIL,Housing Revenue Account ,Unplanned Maintenance and Repair,UMR00,R&M External Contractors,0100,4598.09,AWM Electrical Contractors Ltd,100051,02/05/2013,10184100
INSERTED DETAIL,Housing Revenue Account ,Unplanned Maintenance and Repair,UMR00,R&M External Contractors,0100,1515.86,AWM Electrical Contractors Ltd,100051,02/05/2013,10184101
INSERTED DETAIL,Housing Revenue Account ,Unplanned Maintenance and Repair,UMR00,R&M External Contractors,0100,781.50,AWM Electrical Contractors Ltd,100051,02/05/2013,10184102
INSERTED DETAIL,Housing Revenue Account ,Unplanned Maintenance and Repair,UMR00,R&M External Contractors,0100,2391.74,AWM Electrical Contractors Ltd,100051,16/05/2013,10184644
INSERTED DETAIL,Housing Revenue Account ,Unplanned Maintenance and Repair,UMR00,R&M External Contractors,0100,3627.58,AWM Electrical Contractors Ltd,100051,16/05/2013,10184850
INSERTED DETAIL,Housing Revenue Account ,Supervision and Management General,MAN00,Movement Incentives,0454,34.04,AWM Electrical Contractors Ltd,100051,16/05/2013,10184850
INSERTED DETAIL,Housing Revenue Account ,Unplanned Maintenance and Repair,UMR00,R&M External Contractors,0100,902.89,AWM Electrical Contractors Ltd,100051,16/05/2013,10184851
INSERTED DETAIL,Housing Revenue Account ,Unplanned Maintenance and Repair,UMR00,R&M External Contractors,0100,1461.29,AWM Electrical Contractors Ltd,100051,16/05/2013,10184852
INSERTED DETAIL,Housing Revenue Account ,Unplanned Maintenance and Repair,UMR00,R&M External Contractors,0100,1911.41,AWM Electrical Contractors Ltd,100051,23/05/2013,10184900
INSERTED DETAIL,Housing Revenue Account ,Unplanned Maintenance and Repair,UMR00,R&M External Contractors,0100,448.24,AWM Electrical Contractors Ltd,100051,23/05/2013,10185160
INSERTED DETAIL,Housing Revenue Account ,Unplanned Maintenance and Repair,UMR00,R&M External Contractors,0100,5497.36,AWM Electrical Contractors Ltd,100051,30/05/2013,10185669
INSERTED DETAIL,Capital Program ,Rewiring,HCE20,Capital Contract Payments,5000,1745.95,AWM Electrical Contractors Ltd,100051,30/05/2013,10185669
INSERTED DETAIL,Housing Revenue Account ,Unplanned Maintenance and Repair,UMR00,R&M External Contractors,0100,600.34,AWM Electrical Contractors Ltd,100051,30/05/2013,10185683
INSERTED DETAIL,Housing Revenue Account ,Unplanned Maintenance and Repair,UMR00,R&M External Contractors,0100,1217.28,AWM Electrical Contractors Ltd,100051,30/05/2013,10185684
INSERTED DETAIL,Sustainable Inclusive Communities,CL Grants,CGS00,Other Agencies,0734,17000.00,Age Concern Warwickshire,100082,30/05/2013,10183343
INSERTED DETAIL,Capital Program ,Kitchen Modifications,HIK10,Capital Contract Payments,5000,2651.45,A C E Carpentry & Joinery Contractors Ltd,100085,09/05/2013,10184203
INSERTED DETAIL,Resources & Corporate Governance,Corporate Property R&M,CPA01,R&M External Contractors,0100,1060.00,DC Leisure Rugby,100140,23/05/2013,10181780
INSERTED DETAIL,Resources & Corporate Governance,Corporate Property R&M,CPA01,R&M External Contractors,0100,720.00,DC Leisure Rugby,100140,23/05/2013,10182614
INSERTED DETAIL,Resources & Corporate Governance,Corporate Property R&M,CPA01,R&M External Contractors,0100,793.04,DC Leisure Rugby,100140,23/05/2013,10182822
INSERTED DETAIL,Resources & Corporate Governance,Corporate Property R&M,CPA01,R&M External Contractors,0100,774.00,DC Leisure Rugby,100140,30/05/2013,10184720
INSERTED DETAIL,Sustainable Environment ,Grass Cutting,PKS13,External Contractor & Operator,0742,4091.00,Brinklow Parish Council,100157,02/05/2013,10184156
INSERTED DETAIL,Resources & Corporate Governance ,Council Tax and NNDR Collection,CTX01,External Contractor & Operator,0742,451.41,Bristow & Sutor,100159,16/05/2013,10184395
INSERTED DETAIL,Resources & Corporate Governance ,Council Tax and NNDR Collection,CTX01,External Contractor & Operator,0742,1127.00,Bristow & Sutor,100159,16/05/2013,10184731
INSERTED DETAIL,Resources & Corporate Governance ,WSU Depot,WDP00,Maintenance of Equipment,0301,830.57,Bt Redcare,100221,16/05/2013,10184419
INSERTED DETAIL,Housing Revenue Account ,Unplanned Maintenance and Repair,UMR00,R&M External Contractors,0100,939.01,Barron McCann Ltd,100248,16/05/2013,10184848
INSERTED DETAIL,Economy Development & Culture,Building Regulation Fee Earning Account,BCS99,Subscriptions,0421,548.00,Bsi,100291,09/05/2013,10184402
INSERTED DETAIL,Resources & Corporate Governance ,Street Cleansing,WSC00,Vehicle Repair and Maintenance,0200,289.32,Carwood Motor Units Ltd,100300,23/05/2013,10179699
INSERTED DETAIL,Resources & Corporate Governance ,Domestic Waste Collection,WWC00,Vehicle Repair and Maintenance,0200,66.56,Carwood Motor Units Ltd,100300,23/05/2013,10179699
INSERTED DETAIL,Resources & Corporate Governance ,Garage Internal,WVR01,Materials,0303,67.80,Carwood Motor Units Ltd,100300,23/05/2013,10179699
INSERTED DETAIL,Resources & Corporate Governance ,Highways,WHG00,Vehicle Repair and Maintenance,0200,1898.00,Charles Watts Engineering Ltd,100302,16/05/2013,10184497
INSERTED DETAIL,Resources & Corporate Governance,Corporate Property R&M,CPA01,R&M External Contractors,0100,3185.00,Chillaire Service & Maintenance Ltd,100305,02/05/2013,10184018
INSERTED DETAIL,Resources & Corporate Governance,Handy man,WHM00,External Contractor & Operator,0742,475.00,Cwikskip (Tailby Brack Ltd),100325,30/05/2013,10185523
INSERTED DETAIL,Resources & Corporate Governance ,Financial Services,RES10,Conference & Seminar Fees,0401,1500.00,Cipfa Business Ltd,100341,30/05/2013,10184381
INSERTED DETAIL,Sustainable Inclusive Communities,Housing Options Team,HOT00,New Equipment,0300,510.00,Stone Computers,100390,16/05/2013,10184861
INSERTED DETAIL,Resources & Corporate Governance ,General Administration,WAD00,Hardware Purchase,0375,1020.00,Stone Computers,100390,16/05/2013,10184861
INSERTED DETAIL,Housing Revenue Account ,Property Maintenance,MAN23,New Equipment,0300,510.00,Stone Computers,100390,30/05/2013,10185562
INSERTED DETAIL,Sustainable Environment ,Clinical Waste,REF04,External Contractor & Operator,0742,507.31,OCS Group UK Ltd t/a Cannon,100436,16/05/2013,10184759
INSERTED DETAIL,Sustainable Environment,Regulatory Services,REG00,Other Miscellaneous Expenses,0444,1465.00,Heart Of England Co-operative Society Ltd,100479,16/05/2013,10184403
INSERTED DETAIL,Resources & Corporate Governance ,Domestic Waste Collection,WWC00,Vehicle Repair and Maintenance,0200,1309.74,Dennis Eagle Ltd,100559,02/05/2013,10184064
INSERTED DETAIL,Resources & Corporate Governance ,Domestic Waste Collection,WWC00,Vehicle Repair and Maintenance,0200,825.23,Dennis Eagle Ltd,100559,16/05/2013,10184336
INSERTED DETAIL,Resources & Corporate Governance,Corporate Property R&M,CPA01,R&M External Contractors,0100,547.00,Dunchurch Services (Rugby) Ltd,100565,23/05/2013,10184905
INSERTED DETAIL,Capital Program ,Private Sector Renovation Loans,REN00,Capital Contract Payments,5000,1560.43,Bob Doyle,100575,30/05/2013,10185161
INSERTED DETAIL,Capital Program ,Bathroom Modifications,HIS01,Capital Contract Payments,5000,5795.00,JADA Building & Maintenance Services Ltd,100583,30/05/2013,10185624
INSERTED DETAIL,Resources & Corporate Governance ,WSU Depot,WDP00,Gas,0131,1305.75,ESPO,100641,02/05/2013,10183384
INSERTED DETAIL,Economy Development & Culture,The Benn Hall,BHL00,New Equipment,0300,678.00,ESPO,100641,23/05/2013,10184743
INSERTED DETAIL,Resources & Corporate Governance ,Domestic Waste Collection,WWC00,External Contractor & Operator,0742,1290.15,Container Services UK Limited,100811,16/05/2013,10184721
INSERTED DETAIL,Resources & Corporate Governance ,Domestic Waste Collection,WWC00,Vehicle Repair and Maintenance,0200,658.57,Ford & Slater,100817,16/05/2013,10184450
INSERTED DETAIL,Resources & Corporate Governance ,Garage Internal,WVR01,Materials,0303,922.30,Fuchs Lubricants (Uk) Plc,100832,16/05/2013,10184302
INSERTED DETAIL,Resources & Corporate Governance ,Garage Internal,WVR01,Materials,0303,2320.00,Fuchs Lubricants (Uk) Plc,100832,16/05/2013,10184500
INSERTED DETAIL,,Balance Sheet,BS,Car Leasing Scheme,9244,-1365.01,Lex Autolease Ltd,100844,02/05/2013,10184150
INSERTED DETAIL,,Balance Sheet,BS,Car Leasing Scheme,9244,1799.76,Lex Autolease Ltd,100844,02/05/2013,10184151
INSERTED DETAIL,,Balance Sheet,BS,Car Leasing Scheme,9244,3833.27,Lex Autolease Ltd,100844,30/05/2013,10184741
INSERTED DETAIL,,Balance Sheet,BS,Car Leasing Scheme,9244,-538.45,Lex Autolease Ltd,100844,30/05/2013,10185258
INSERTED DETAIL,,Balance Sheet,BS,Car Leasing Scheme,9244,635.30,Lex Autolease Ltd,100844,30/05/2013,10185666
INSERTED DETAIL,Resources & Corporate Governance ,Domestic Waste Collection,WWC00,Vehicle Repair and Maintenance,0200,426.06,FAUN Zoeller (UK) Ltd,100871,16/05/2013,10184358
INSERTED DETAIL,Resources & Corporate Governance ,Town Hall,OFF00,Materials,0303,586.62,Greenham,100890,16/05/2013,10184471
INSERTED DETAIL,Sustainable Environment ,Caldecott Park/Town Centre Area,PKS00,Maintenance of Equipment,0301,613.72,GB Sport & Leisure UK Ltd,100920,23/05/2013,10184938
INSERTED DETAIL,Resources & Corporate Governance ,Human Resources Centralised Services,RES31,Recruitment Expenses,0012,735.00,TMP (UK) LTD,100972,02/05/2013,10182546
INSERTED DETAIL,Resources & Corporate Governance ,Human Resources Centralised Services,RES31,Recruitment Expenses,0012,735.00,TMP (UK) LTD,100972,02/05/2013,10182547
INSERTED DETAIL,Resources & Corporate Governance ,Human Resources Centralised Services,RES31,Recruitment Expenses,0012,534.00,TMP (UK) LTD,100972,09/05/2013,10184488
INSERTED DETAIL,Resources & Corporate Governance ,Human Resources Centralised Services,RES31,Recruitment Expenses,0012,585.40,TMP (UK) LTD,100972,16/05/2013,10184682
INSERTED DETAIL,Capital Program ,Bathroom Modifications,HIS01,Capital Contract Payments,5000,2985.00,B Hartwell Plumbers Ltd,100989,16/05/2013,10184847
INSERTED DETAIL,Resources & Corporate Governance ,Civic Responsibilities,CIV00,Special Events/Activities,0447,612.25,House Of Flags,101048,16/05/2013,10184688
INSERTED DETAIL,Housing Revenue Account ,Unplanned Maintenance and Repair,UMR00,R&M External Contractors,0100,1202.00,Hardall International Limited,101091,24/04/2013,10183918
INSERTED DETAIL,Housing Revenue Account ,Unplanned Maintenance and Repair,UMR00,R&M External Contractors,0100,1202.00,Hardall International Limited,101091,23/05/2013,10184730
INSERTED DETAIL,Housing Revenue Account ,Control Centre (HRA),CCE00,New Equipment,0300,1403.60,Chubb Systems LTD,101154,23/05/2013,10185192
INSERTED DETAIL,Housing Revenue Account ,Supervision and Management General,MAN00,Premises Related Insurance Premiums,0180,5865.38,Jardine Lloyd Thompson,101192,16/05/2013,10183874
INSERTED DETAIL,Sustainable Inclusive Communities,House Purchase and Improvement Loans,HPL00,Other Insurance Premiums,0440,976.76,Jardine Lloyd Thompson,101192,16/05/2013,10183874
INSERTED DETAIL,Capital Program ,Sale of Council Houses,SCH00,Other Insurance Premiums,0440,55.76,Jardine Lloyd Thompson,101192,16/05/2013,10183874
INSERTED DETAIL,Housing Revenue Account ,Supervision and Management General,MAN00,Reimbursements - Outside Scope,1107,1778.70,Jardine Lloyd Thompson,101192,16/05/2013,10183874
INSERTED DETAIL,Resources & Corporate Governance ,Grounds Maintenance,WGM00,External Contractor & Operator,0742,7344.00,K A Hicks,101216,23/05/2013,10184701
INSERTED DETAIL,,User Balance Sheet Cost Centre,BSU,Section Agreements,9865,8198.76,Long Lawford Parish Council,101228,30/05/2013,10184904
INSERTED DETAIL,,User Balance Sheet Cost Centre,BSU,Section Agreements,9865,30000.00,Long Lawford Parish Council,101228,30/05/2013,10185390
INSERTED DETAIL,,Balance Sheet,BS,Car Loan Scheme,9261,5800.00,REDACTED PERSONAL DATA,101229,31/05/2013,10185763
INSERTED DETAIL,Resources & Corporate Governance,Handy man,WHM00,Materials,0303,523.00,Melbros Ltd,101291,09/05/2013,10183304
INSERTED DETAIL,Resources & Corporate Governance,Handy man,WHM00,Materials,0303,537.51,Melbros Ltd,101291,09/05/2013,10183306
INSERTED DETAIL,Resources & Corporate Governance,Handy man,WHM00,Materials,0303,788.28,Melbros Ltd,101291,16/05/2013,10184878
INSERTED DETAIL,Resources & Corporate Governance,Handy man,WHM00,Materials,0303,435.00,Melbros Ltd,101291,30/05/2013,10185368
INSERTED DETAIL,Resources & Corporate Governance,Handy man,WHM00,External Contractor & Operator,0742,548.57,M W D Services Ltd,101293,02/05/2013,10184062
INSERTED DETAIL,Resources & Corporate Governance,Handy man,WHM00,External Contractor & Operator,0742,601.16,M W D Services Ltd,101293,02/05/2013,10184063
INSERTED DETAIL,Housing Revenue Account ,Maintenance of Open Spaces,MOS00,External Contractor & Operator,0742,180.00,Monks Kirby Parish Council,101300,02/05/2013,10184149
INSERTED DETAIL,Sustainable Environment ,Grass Cutting,PKS13,External Contractor & Operator,0742,2368.00,Monks Kirby Parish Council,101300,02/05/2013,10184149
INSERTED DETAIL,Housing Revenue Account ,Unplanned Maintenance and Repair,UMR00,R&M External Contractors,0100,2591.00,Msm Environmental Services,101317,16/05/2013,10184844
INSERTED DETAIL,Resources & Corporate Governance ,Domestic Waste Collection,WWC00,Vehicle Repair and Maintenance,0200,1082.18,Noden Truck Centre Ltd,101368,10/05/2013,10184761
INSERTED DETAIL,Resources & Corporate Governance ,Domestic Waste Collection,WWC00,Vehicle Repair and Maintenance,0200,2339.68,Noden Truck Centre Ltd,101368,10/05/2013,10184763
INSERTED DETAIL,Resources & Corporate Governance ,Domestic Waste Collection,WWC00,Vehicle Repair and Maintenance,0200,1949.73,Noden Truck Centre Ltd,101368,23/05/2013,10185123
INSERTED DETAIL,Resources & Corporate Governance ,Grounds Maintenance,WGM00,Vehicle Repair and Maintenance,0200,1960.40,Noden Truck Centre Ltd,101368,23/05/2013,10185140
INSERTED DETAIL,Resources & Corporate Governance ,Domestic Waste Collection,WWC00,Vehicle Repair and Maintenance,0200,901.82,Noden Truck Centre Ltd,101368,30/05/2013,10185403
INSERTED DETAIL,Resources & Corporate Governance ,Maintenance of Customer Services Systems,CIS21,Software Maintenance,0374,795.00,Ncc Services Limited,101374,30/05/2013,10184713
INSERTED DETAIL,Economy Development & Culture,Visitor Centre,VSC00,Events Tickets - Zero Rated,1405,1260.27,National Express Ltd,101392,09/05/2013,10184393
INSERTED DETAIL,Housing Revenue Account ,Sheltered Housing,AGP00,Telephone Expenses,0371,19.09,EE Ltd t/a Orange Personal Communications,101404,09/05/2013,10184421
INSERTED DETAIL,Resources & Corporate Governance ,WSU Depot,WDP00,Telephone Expenses,0371,443.00,EE Ltd t/a Orange Personal Communications,101404,09/05/2013,10184421
INSERTED DETAIL,Capital Program ,Disabled Facilities Grant,REN01,Capital Contract Payments,5000,776.19,Orbit Group Limited,101414,30/05/2013,10185384
INSERTED DETAIL,Capital Program ,Disabled Facilities Grant,REN01,Capital Contract Payments,5000,734.22,Orbit Group Limited,101414,30/05/2013,10185388
INSERTED DETAIL,Resources & Corporate Governance,Central Business Support Services,CSS15,External Printing,0352,500.00,Polycopy,101428,23/05/2013,10185187
INSERTED DETAIL,Resources & Corporate Governance,Handy man,WHM00,Vehicle Running Costs,0201,220.00,Post Office Ltd,101429,16/05/2013,10184703
INSERTED DETAIL,Resources & Corporate Governance ,Domestic Waste Collection,WWC00,Vehicle Running Costs,0201,650.00,Post Office Ltd,101429,16/05/2013,10184703
INSERTED DETAIL,Sustainable Inclusive Communities,Sewage Disposal Plant,SDP00,R&M External Contractors,0100,520.28,PJT Pumping Services,101438,09/05/2013,10184376
INSERTED DETAIL,Sustainable Environment ,Caldecott Park/Town Centre Area,PKS00,R&M External Contractors,0100,475.00,Post To Post Fencing,101490,30/05/2013,10185293
INSERTED DETAIL,Sustainable Environment ,Caldecott Park/Town Centre Area,PKS00,R&M External Contractors,0100,150.00,Post To Post Fencing,101490,23/05/2013,10185294
INSERTED DETAIL,Housing Revenue Account ,Maintenance of Open Spaces,MOS00,External Contractor & Operator,0742,200.00,Post To Post Fencing,101490,23/05/2013,10185294
INSERTED DETAIL,Sustainable Environment ,Caldecott Park/Town Centre Area,PKS00,External Contractor & Operator,0742,175.00,Post To Post Fencing,101490,23/05/2013,10185294
INSERTED DETAIL,Resources & Corporate Governance ,WSU Depot,WDP00,Rates,0141,36738.00,Rugby Borough Council,101516,02/05/2013,10183258
INSERTED DETAIL,Housing Revenue Account ,Supervision and Management General,MAN00,Council Tax,0142,944.63,Rugby Borough Council,101516,09/05/2013,10184193
INSERTED DETAIL,Sustainable Environment ,Caldecott Park/Town Centre Area,PKS00,Rates,0141,5544.00,Rugby Borough Council,101516,23/05/2013,10185302
INSERTED DETAIL,Economy Development & Culture,Art Gallery and Museum,AGM00,Postage & Distribution,0370,1.51,Royal Mail,101554,09/05/2013,10180616
INSERTED DETAIL,Economy Development & Culture,Building Control Services,BCS00,Postage & Distribution,0370,0.06,Royal Mail,101554,09/05/2013,10180616
INSERTED DETAIL,Economy Development & Culture,Building Control Services Non-Fee Earning Account,BCS01,Postage & Distribution,0370,0.06,Royal Mail,101554,09/05/2013,10180616
INSERTED DETAIL,Economy Development & Culture,Building Regulation Fee Earning Account,BCS99,Postage & Distribution,0370,1.15,Royal Mail,101554,09/05/2013,10180616
INSERTED DETAIL,Economy Development & Culture,Car Parks General,CPK01,Postage & Distribution,0370,55.94,Royal Mail,101554,09/05/2013,10180616
INSERTED DETAIL,Resources & Corporate Governance,Central Business Support Services,CSS15,Postage & Distribution,0370,422.47,Royal Mail,101554,09/05/2013,10180616
INSERTED DETAIL,Resources & Corporate Governance ,Council Tax and NNDR Collection,CTX01,Postage & Distribution,0370,173.75,Royal Mail,101554,09/05/2013,10180616
INSERTED DETAIL,Economy Development & Culture,Decrim. of Car Parking on street parking,DPE02,Postage & Distribution,0370,223.73,Royal Mail,101554,09/05/2013,10180616
INSERTED DETAIL,Resources & Corporate Governance ,Electoral Registration,ERG00,Postage & Distribution,0370,4.74,Royal Mail,101554,09/05/2013,10180616
INSERTED DETAIL,Sustainable Inclusive Communities,Housing Benefit Administration,HBA00,Postage & Distribution,0370,188.84,Royal Mail,101554,09/05/2013,10180616
INSERTED DETAIL,Housing Revenue Account ,Supervision and Management General,MAN00,Postage & Distribution,0370,86.25,Royal Mail,101554,09/05/2013,10180616
INSERTED DETAIL,Economy Development & Culture,Planning General/Income,PLN00,Postage & Distribution,0370,244.61,Royal Mail,101554,09/05/2013,10180616
INSERTED DETAIL,Economy Development & Culture,Visitor Centre,VSC00,Postage & Distribution,0370,1.06,Royal Mail,101554,09/05/2013,10180616
INSERTED DETAIL,Resources & Corporate Governance ,General Administration,WAD00,Postage & Distribution,0370,38.50,Royal Mail,101554,09/05/2013,10180616
INSERTED DETAIL,Resources & Corporate Governance ,Borough Elections,ELC00,Postage & Distribution,0370,1283.91,Royal Mail,101554,02/05/2013,10183346
INSERTED DETAIL,Economy Development & Culture,Building Control Services,BCS00,Postage & Distribution,0370,0.88,Royal Mail,101554,02/05/2013,10183509
INSERTED DETAIL,Economy Development & Culture,Building Control Services Non-Fee Earning Account,BCS01,Postage & Distribution,0370,0.88,Royal Mail,101554,02/05/2013,10183509
INSERTED DETAIL,Economy Development & Culture,Building Regulation Fee Earning Account,BCS99,Postage & Distribution,0370,15.90,Royal Mail,101554,02/05/2013,10183509
INSERTED DETAIL,Economy Development & Culture,Car Parks General,CPK01,Postage & Distribution,0370,33.13,Royal Mail,101554,02/05/2013,10183509
INSERTED DETAIL,Resources & Corporate Governance,Central Business Support Services,CSS15,Postage & Distribution,0370,294.06,Royal Mail,101554,02/05/2013,10183509
INSERTED DETAIL,Resources & Corporate Governance ,Council Tax and NNDR Collection,CTX01,Postage & Distribution,0370,444.62,Royal Mail,101554,02/05/2013,10183509
INSERTED DETAIL,Economy Development & Culture,Decrim. of Car Parking on street parking,DPE02,Postage & Distribution,0370,132.50,Royal Mail,101554,02/05/2013,10183509
INSERTED DETAIL,Resources & Corporate Governance ,Electoral Registration,ERG00,Postage & Distribution,0370,19.85,Royal Mail,101554,02/05/2013,10183509
INSERTED DETAIL,Sustainable Inclusive Communities,Housing Benefit Administration,HBA00,Postage & Distribution,0370,146.25,Royal Mail,101554,02/05/2013,10183509
INSERTED DETAIL,Housing Revenue Account ,Supervision and Management General,MAN00,Postage & Distribution,0370,160.05,Royal Mail,101554,02/05/2013,10183509
INSERTED DETAIL,Economy Development & Culture,Planning General/Income,PLN00,Postage & Distribution,0370,89.23,Royal Mail,101554,02/05/2013,10183509
INSERTED DETAIL,Economy Development & Culture,Visitor Centre,VSC00,Postage & Distribution,0370,2.65,Royal Mail,101554,02/05/2013,10183509
INSERTED DETAIL,Resources & Corporate Governance ,General Administration,WAD00,Postage & Distribution,0370,9.41,Royal Mail,101554,02/05/2013,10183509
INSERTED DETAIL,Economy Development & Culture,Art Gallery and Museum,AGM00,Postage & Distribution,0370,3.96,Royal Mail,101554,16/05/2013,10183884
INSERTED DETAIL,Economy Development & Culture,Building Control Services,BCS00,Postage & Distribution,0370,0.02,Royal Mail,101554,16/05/2013,10183884
INSERTED DETAIL,Economy Development & Culture,Building Control Services Non-Fee Earning Account,BCS01,Postage & Distribution,0370,0.02,Royal Mail,101554,16/05/2013,10183884
INSERTED DETAIL,Economy Development & Culture,Building Regulation Fee Earning Account,BCS99,Postage & Distribution,0370,0.29,Royal Mail,101554,16/05/2013,10183884
INSERTED DETAIL,Economy Development & Culture,Car Parks General,CPK01,Postage & Distribution,0370,38.12,Royal Mail,101554,16/05/2013,10183884
INSERTED DETAIL,Resources & Corporate Governance,Central Business Support Services,CSS15,Postage & Distribution,0370,223.92,Royal Mail,101554,16/05/2013,10183884
INSERTED DETAIL,Resources & Corporate Governance ,Council Tax and NNDR Collection,CTX01,Postage & Distribution,0370,378.62,Royal Mail,101554,16/05/2013,10183884
INSERTED DETAIL,Economy Development & Culture,Decrim. of Car Parking on street parking,DPE02,Postage & Distribution,0370,152.49,Royal Mail,101554,16/05/2013,10183884
INSERTED DETAIL,Resources & Corporate Governance ,Electoral Registration,ERG00,Postage & Distribution,0370,306.20,Royal Mail,101554,16/05/2013,10183884
INSERTED DETAIL,Sustainable Inclusive Communities,Housing Benefit Administration,HBA00,Postage & Distribution,0370,1172.90,Royal Mail,101554,16/05/2013,10183884
INSERTED DETAIL,Housing Revenue Account ,Supervision and Management General,MAN00,Postage & Distribution,0370,387.07,Royal Mail,101554,16/05/2013,10183884
INSERTED DETAIL,Economy Development & Culture,Planning General/Income,PLN00,Postage & Distribution,0370,133.09,Royal Mail,101554,16/05/2013,10183884
INSERTED DETAIL,Economy Development & Culture,Visitor Centre,VSC00,Postage & Distribution,0370,0.71,Royal Mail,101554,16/05/2013,10183884
INSERTED DETAIL,Resources & Corporate Governance ,General Administration,WAD00,Postage & Distribution,0370,20.26,Royal Mail,101554,16/05/2013,10183884
INSERTED DETAIL,Economy Development & Culture,Art Gallery and Museum,AGM00,Postage & Distribution,0370,4.56,Royal Mail,101554,23/05/2013,10184642
INSERTED DETAIL,Economy Development & Culture,Building Control Services,BCS00,Postage & Distribution,0370,0.31,Royal Mail,101554,23/05/2013,10184642
INSERTED DETAIL,Economy Development & Culture,Building Control Services Non-Fee Earning Account,BCS01,Postage & Distribution,0370,0.31,Royal Mail,101554,23/05/2013,10184642
INSERTED DETAIL,Economy Development & Culture,Building Regulation Fee Earning Account,BCS99,Postage & Distribution,0370,5.61,Royal Mail,101554,23/05/2013,10184642
INSERTED DETAIL,Economy Development & Culture,Car Parks General,CPK01,Postage & Distribution,0370,73.33,Royal Mail,101554,23/05/2013,10184642
INSERTED DETAIL,Resources & Corporate Governance,Central Business Support Services,CSS15,Postage & Distribution,0370,315.35,Royal Mail,101554,23/05/2013,10184642
INSERTED DETAIL,Resources & Corporate Governance ,Council Tax and NNDR Collection,CTX01,Postage & Distribution,0370,539.62,Royal Mail,101554,23/05/2013,10184642
INSERTED DETAIL,Economy Development & Culture,Decrim. of Car Parking on street parking,DPE02,Postage & Distribution,0370,293.32,Royal Mail,101554,23/05/2013,10184642
INSERTED DETAIL,Resources & Corporate Governance ,Electoral Registration,ERG00,Postage & Distribution,0370,243.43,Royal Mail,101554,23/05/2013,10184642
INSERTED DETAIL,Sustainable Inclusive Communities,Housing Benefit Administration,HBA00,Postage & Distribution,0370,286.54,Royal Mail,101554,23/05/2013,10184642
INSERTED DETAIL,Housing Revenue Account ,Supervision and Management General,MAN00,Postage & Distribution,0370,112.42,Royal Mail,101554,23/05/2013,10184642
INSERTED DETAIL,Economy Development & Culture,Planning General/Income,PLN00,Postage & Distribution,0370,162.13,Royal Mail,101554,23/05/2013,10184642
INSERTED DETAIL,Economy Development & Culture,Visitor Centre,VSC00,Postage & Distribution,0370,0.47,Royal Mail,101554,23/05/2013,10184642
INSERTED DETAIL,Resources & Corporate Governance ,General Administration,WAD00,Postage & Distribution,0370,37.28,Royal Mail,101554,23/05/2013,10184642
INSERTED DETAIL,Economy Development & Culture,Building Control Services,BCS00,Postage & Distribution,0370,0.10,Royal Mail,101554,30/05/2013,10185315
INSERTED DETAIL,Economy Development & Culture,Building Control Services Non-Fee Earning Account,BCS01,Postage & Distribution,0370,0.10,Royal Mail,101554,30/05/2013,10185315
INSERTED DETAIL,Economy Development & Culture,Building Regulation Fee Earning Account,BCS99,Postage & Distribution,0370,1.79,Royal Mail,101554,30/05/2013,10185315
INSERTED DETAIL,Economy Development & Culture,Car Parks General,CPK01,Postage & Distribution,0370,49.91,Royal Mail,101554,30/05/2013,10185315
INSERTED DETAIL,Resources & Corporate Governance,Central Business Support Services,CSS15,Postage & Distribution,0370,369.58,Royal Mail,101554,30/05/2013,10185315
INSERTED DETAIL,Resources & Corporate Governance ,Council Tax and NNDR Collection,CTX01,Postage & Distribution,0370,272.75,Royal Mail,101554,30/05/2013,10185315
INSERTED DETAIL,Economy Development & Culture,Decrim. of Car Parking on street parking,DPE02,Postage & Distribution,0370,199.65,Royal Mail,101554,30/05/2013,10185315
INSERTED DETAIL,Resources & Corporate Governance ,Electoral Registration,ERG00,Postage & Distribution,0370,11.24,Royal Mail,101554,30/05/2013,10185315
INSERTED DETAIL,Sustainable Inclusive Communities,Housing Benefit Administration,HBA00,Postage & Distribution,0370,181.78,Royal Mail,101554,30/05/2013,10185315
INSERTED DETAIL,Housing Revenue Account ,Supervision and Management General,MAN00,Postage & Distribution,0370,72.71,Royal Mail,101554,30/05/2013,10185315
INSERTED DETAIL,Economy Development & Culture,Planning General/Income,PLN00,Postage & Distribution,0370,257.76,Royal Mail,101554,30/05/2013,10185315
INSERTED DETAIL,Resources & Corporate Governance ,General Administration,WAD00,Postage & Distribution,0370,84.68,Royal Mail,101554,30/05/2013,10185315
INSERTED DETAIL,Capital Program ,Disabled Facilities Grant,REN01,Capital Grants,5014,1811.00,Stannah Stairlifts Ltd,101623,02/05/2013,10184090
INSERTED DETAIL,Sustainable Environment ,Grass Cutting,PKS13,External Contractor & Operator,0742,511.00,Thurlaston Parish Council,101726,23/05/2013,10185183
INSERTED DETAIL,Resources & Corporate Governance ,Domestic Waste Collection,WWC00,Vehicle Running Costs,0201,740.89,HI-Q Motorway,101736,23/05/2013,10184462
INSERTED DETAIL,Resources & Corporate Governance ,Domestic Waste Collection,WWC00,Vehicle Running Costs,0201,887.91,HI-Q Motorway,101736,30/05/2013,10184942
INSERTED DETAIL,Resources & Corporate Governance ,Domestic Waste Collection,WWC00,Vehicle Running Costs,0201,964.00,HI-Q Motorway,101736,30/05/2013,10184944
INSERTED DETAIL,Resources & Corporate Governance ,Domestic Waste Collection,WWC00,Vehicle Running Costs,0201,621.00,HI-Q Motorway,101736,30/05/2013,10184947
INSERTED DETAIL,Resources & Corporate Governance ,Trade Waste Collection,WWC01,Vehicle Running Costs,0201,278.91,HI-Q Motorway,101736,30/05/2013,10184947
INSERTED DETAIL,Resources & Corporate Governance ,Trade Waste Collection,WWC01,Materials,0303,5104.00,Egbert H. Taylor & Co Ltd,101741,30/05/2013,10185552
INSERTED DETAIL,Resources & Corporate Governance ,Grounds Maintenance,WGM00,Materials,0303,595.38,Tudor Environmental,101743,16/05/2013,10184337
INSERTED DETAIL,Resources & Corporate Governance ,TREE WORKS,WGM01,Tools,0304,99.11,Tudor Environmental,101743,30/05/2013,10185323
INSERTED DETAIL,Resources & Corporate Governance ,TREE WORKS,WGM01,Personal Protective Clothing,0340,551.15,Tudor Environmental,101743,30/05/2013,10185323
INSERTED DETAIL,Housing Revenue Account ,Sheltered Housing,AGP00,Telephone Expenses,0371,471.46,Vodafone Corporate Ltd,101831,23/05/2013,10184133
INSERTED DETAIL,Economy Development & Culture,Building Control Services,BCS00,Telephone Expenses,0371,0.18,Vodafone Corporate Ltd,101831,23/05/2013,10184133
INSERTED DETAIL,Economy Development & Culture,Building Control Services Non-Fee Earning Account,BCS01,Telephone Expenses,0371,0.12,Vodafone Corporate Ltd,101831,23/05/2013,10184133
INSERTED DETAIL,Economy Development & Culture,Building Regulation Fee Earning Account,BCS99,Telephone Expenses,0371,5.85,Vodafone Corporate Ltd,101831,23/05/2013,10184133
INSERTED DETAIL,Housing Revenue Account ,Control Centre (HRA),CCE00,Telephone Expenses,0371,19.85,Vodafone Corporate Ltd,101831,23/05/2013,10184133
INSERTED DETAIL,Resources & Corporate Governance ,Council Tax and NNDR Collection,CTX01,Telephone Expenses,0371,7.10,Vodafone Corporate Ltd,101831,23/05/2013,10184133
INSERTED DETAIL,Sustainable Inclusive Communities,Housing Options Team,HOT00,Telephone Expenses,0371,49.36,Vodafone Corporate Ltd,101831,23/05/2013,10184133
INSERTED DETAIL,Housing Revenue Account ,Supervision and Management General,MAN00,Telephone Expenses,0371,303.21,Vodafone Corporate Ltd,101831,23/05/2013,10184133
INSERTED DETAIL,Housing Revenue Account ,Estate Management,MAN22,Telephone Expenses,0371,54.00,Vodafone Corporate Ltd,101831,23/05/2013,10184133
INSERTED DETAIL,Housing Revenue Account ,Multi-Storey Flats,MSF00,Telephone Expenses,0371,11.16,Vodafone Corporate Ltd,101831,23/05/2013,10184133
INSERTED DETAIL,Sustainable Environment ,Grass Cutting,PKS13,External Contractor & Operator,0742,4875.00,Wolston Parish Council,101852,16/05/2013,10184675
INSERTED DETAIL,Sustainable Environment ,Grass Cutting,PKS13,External Contractor & Operator,0742,1807.00,Wolvey Parish Council,101853,09/05/2013,10184357
INSERTED DETAIL,Sustainable Environment ,Caldecott Park/Town Centre Area,PKS00,External Contractor & Operator,0742,500.00,Warwickshire Wildlife Trust (Rugby Area Group),101864,23/05/2013,10185182
INSERTED DETAIL,Resources & Corporate Governance ,General Financial Services,GFS00,Subscriptions,0421,1950.00,West Midlands Employers,101880,30/05/2013,10185295
INSERTED DETAIL,Resources & Corporate Governance ,General Administration,WAD00,Training fees,0011,1500.00,Warwickshire College,101882,23/05/2013,10184939
INSERTED DETAIL,Economy Development & Culture,Planning General/Income,PLN00,Consultancy Costs,0740,2647.00,Warwickshire County Council,101893,09/05/2013,10182827
INSERTED DETAIL,Economy Development & Culture,Decrim. of Car Parking on street parking,DPE02,Payments to Other Local Authorities,0710,111963.00,Warwickshire County Council,101893,16/05/2013,10184128
INSERTED DETAIL,Sustainable Inclusive Communities,Housing Strategy & Enabling,HSE00,Grants To Voluntary Organisations,0720,2052.00,Warwickshire County Council,101893,02/05/2013,10184137
INSERTED DETAIL,Capital Program ,Private Sector Renovation Loans,REN00,Capital Contract Payments,5000,3044.40,"Progress Windows, Roofline & Conservatories Ltd",101917,30/05/2013,10185655
INSERTED DETAIL,Sustainable Inclusive Communities,Woodside Park,TVR00,R&M External Contractors,0100,50.00,Adroit Services Ltd,101939,30/05/2013,10184899
INSERTED DETAIL,Capital Program ,Electric to Gas Conversions,HIM04,Capital Contract Payments,5000,2535.73,Adroit Services Ltd,101939,30/05/2013,10184899
INSERTED DETAIL,Capital Program ,Electric to Gas Conversions,HIM04,Capital Contract Payments,5000,941.72,Adroit Services Ltd,101939,23/05/2013,10185157
INSERTED DETAIL,Housing Revenue Account ,Unplanned Maintenance and Repair,UMR00,R&M External Contractors,0100,53.10,Adroit Services Ltd,101939,23/05/2013,10185158
INSERTED DETAIL,Capital Program ,Electric to Gas Conversions,HIM04,Capital Contract Payments,5000,3044.40,Adroit Services Ltd,101939,23/05/2013,10185158
INSERTED DETAIL,Housing Revenue Account ,Unplanned Maintenance and Repair,UMR00,R&M External Contractors,0100,401.48,Adroit Services Ltd,101939,30/05/2013,10185672
INSERTED DETAIL,Capital Program ,Electric to Gas Conversions,HIM04,Capital Contract Payments,5000,881.62,Adroit Services Ltd,101939,30/05/2013,10185672
INSERTED DETAIL,Resources & Corporate Governance ,"Communications, Consultation and Information Team",BTR20,Publicity & Marketing,0377,700.00,Johnston Publishing Ltd,107468,09/05/2013,10184212
INSERTED DETAIL,Economy Development & Culture,Decrim. of Car Parking on street parking,DPE02,Other Miscellaneous Expenses,0444,578.40,TJS Self Drive Rugby,107992,09/05/2013,10184484
INSERTED DETAIL,Resources & Corporate Governance ,Customer and Information Strategy,CIS10,Payments to Other Local Authorities,0710,6000.00,Nuneaton & Bedworth Borough Council,108060,09/05/2013,10184202
INSERTED DETAIL,Resources & Corporate Governance,Corporate Property R&M,CPA01,R&M External Contractors,0100,424.00,Ser-Tec Systems Ltd,108074,02/05/2013,10183753
INSERTED DETAIL,Resources & Corporate Governance ,Central Telephone Service,TEL00,Telephone Expenses,0371,973.92,British Telecommunications PLC,108425,02/05/2013,10183747
INSERTED DETAIL,Resources & Corporate Governance ,Central Telephone Service,TEL00,Telephone Expenses,0371,977.67,British Telecommunications PLC,108425,30/05/2013,10185371
INSERTED DETAIL,Capital Program ,Crematorium Project,BUR04,Capital Contract Payments,5000,3094.50,W A Adams R W A/C,108937,02/05/2013,10184164
INSERTED DETAIL,Sustainable Inclusive Communities,Woodside Park,TVR00,Other Agencies,0734,1026.00,Environment Agency,109492,02/05/2013,10184124
INSERTED DETAIL,Sustainable Environment ,Domestic Waste Collection/Recycling,REF00,External Contractor & Operator,0742,2420.00,Environment Agency,109492,09/05/2013,10184209
INSERTED DETAIL,Sustainable Environment ,Crime and Disorder Activities,CAD00,Other Miscellaneous Expenses,0444,2000.00,CSWP Ltd,109679,30/05/2013,10185336
INSERTED DETAIL,Capital Program ,Private Sector Renovation Loans,REN00,Capital Contract Payments,5000,695.00,K W Damp Proofing,109936,16/05/2013,10184735
INSERTED DETAIL,Resources & Corporate Governance ,Garage Internal,WVR01,Materials,0303,28431.00,Watson Petroleum,110361,16/05/2013,10184627
INSERTED DETAIL,Resources & Corporate Governance,Central Business Support Services,CSS15,Photocopying,0354,3641.12,Ricoh UK Limited,111532,23/05/2013,10185171
INSERTED DETAIL,Resources & Corporate Governance,Central Business Support Services,CSS15,Photocopying,0354,2995.57,Ricoh UK Limited,111532,23/05/2013,10185172
INSERTED DETAIL,Resources & Corporate Governance ,Maintenance of Customer Services Systems,CIS21,Software Maintenance,0374,2602.39,Civica UK Ltd,112724,02/05/2013,10184165
INSERTED DETAIL,Resources & Corporate Governance ,Maintenance of Customer Services Systems,CIS21,Software Purchase,0373,1500.00,Civica UK Ltd,112724,30/05/2013,10185338
INSERTED DETAIL,Resources & Corporate Governance ,Domestic Waste Collection,WWC00,Agency Staff,0003,508.37,Extra Personnel Limited,112996,16/05/2013,10184319
INSERTED DETAIL,Resources & Corporate Governance ,Domestic Waste Collection,WWC00,Agency Staff,0003,508.37,Extra Personnel Limited,112996,16/05/2013,10184623
INSERTED DETAIL,Resources & Corporate Governance ,Domestic Waste Collection,WWC00,Agency Staff,0003,508.37,Extra Personnel Limited,112996,16/05/2013,10184683
INSERTED DETAIL,Resources & Corporate Governance ,Domestic Waste Collection,WWC00,Agency Staff,0003,556.67,Extra Personnel Limited,112996,23/05/2013,10185141
INSERTED DETAIL,Resources & Corporate Governance ,Domestic Waste Collection,WWC00,Agency Staff,0003,559.89,Extra Personnel Limited,112996,23/05/2013,10185143
INSERTED DETAIL,Resources & Corporate Governance ,Domestic Waste Collection,WWC00,Agency Staff,0003,-508.37,Extra Personnel Limited,112996,23/05/2013,10185144
INSERTED DETAIL,Resources & Corporate Governance ,Domestic Waste Collection,WWC00,Agency Staff,0003,-508.37,Extra Personnel Limited,112996,23/05/2013,10185145
INSERTED DETAIL,Resources & Corporate Governance ,Domestic Waste Collection,WWC00,Agency Staff,0003,559.89,Extra Personnel Limited,112996,23/05/2013,10185190
INSERTED DETAIL,Resources & Corporate Governance ,Domestic Waste Collection,WWC00,Agency Staff,0003,598.77,Extra Personnel Limited,112996,30/05/2013,10185509
INSERTED DETAIL,Sustainable Inclusive Communities,Housing Benefit Administration,HBA00,Agency Staff,0003,1019.25,Badenoch & Clark,113435,09/05/2013,10184111
INSERTED DETAIL,Sustainable Inclusive Communities,Housing Benefit Administration,HBA00,Agency Staff,0003,1053.00,Badenoch & Clark,113435,09/05/2013,10184113
INSERTED DETAIL,Sustainable Inclusive Communities,Housing Benefit Administration,HBA00,Agency Staff,0003,1019.25,Badenoch & Clark,113435,09/05/2013,10184372
INSERTED DETAIL,Sustainable Inclusive Communities,Housing Benefit Administration,HBA00,Agency Staff,0003,992.25,Badenoch & Clark,113435,16/05/2013,10184674
INSERTED DETAIL,Sustainable Inclusive Communities,Housing Benefit Administration,HBA00,Agency Staff,0003,789.75,Badenoch & Clark,113435,23/05/2013,10185217
INSERTED DETAIL,Sustainable Inclusive Communities,Housing Benefit Administration,HBA00,Agency Staff,0003,1046.25,Badenoch & Clark,113435,30/05/2013,10185687
INSERTED DETAIL,Sustainable Environment ,Cemeteries General,CEM00,Purchases for Resale,0305,656.00,Streetmaster (South Wales) Ltd,114898,16/05/2013,10184739
INSERTED DETAIL,Economy Development & Culture,AGM Exhibitions/Outreach,AGM02,Fees & Charges - Standard Rated,1400,651.70,Craftspace Ltd,116222,02/05/2013,10183744
INSERTED DETAIL,Sustainable Environment ,Caldecott Park/Town Centre Area,PKS00,External Contractor & Operator,0742,644.00,T H White Ltd,116311,30/05/2013,10185626
INSERTED DETAIL,Resources & Corporate Governance ,General Administration,WAD00,Training fees,0011,845.00,OSTAS,117097,16/05/2013,10184626
INSERTED DETAIL,Sustainable Inclusive Communities,Housing Benefit Administration,HBA00,Other,0763,1325.00,Airey Consultancy Services Ltd,117127,16/05/2013,10184740
INSERTED DETAIL,Resources & Corporate Governance,Corporate Property R&M,CPA01,R&M External Contractors,0100,1290.00,Chillaire Ltd,117596,23/05/2013,10184746
INSERTED DETAIL,Sustainable Environment ,Cemeteries General,CEM00,R&M External Contractors,0100,665.50,Lushglen,117749,02/05/2013,10184092
INSERTED DETAIL,Resources & Corporate Governance ,Domestic Waste Collection,WWC00,Vehicle Repair and Maintenance,0200,1341.98,Farid Municipal Vehicles Limited,118309,23/05/2013,10184929
INSERTED DETAIL,Resources & Corporate Governance ,Garage Internal,WVR01,Vehicle Repair and Maintenance,0200,863.48,Farid Municipal Vehicles Limited,118309,23/05/2013,10184930
INSERTED DETAIL,Resources & Corporate Governance ,Domestic Waste Collection,WWC00,Vehicle Repair and Maintenance,0200,1425.00,Farid Municipal Vehicles Limited,118309,23/05/2013,10184932
INSERTED DETAIL,Resources & Corporate Governance ,Domestic Waste Collection,WWC00,Vehicle Repair and Maintenance,0200,1520.66,Farid Municipal Vehicles Limited,118309,23/05/2013,10184933
INSERTED DETAIL,Housing Revenue Account ,Unplanned Maintenance and Repair,UMR00,R&M External Contractors,0100,647.74,Pro-Tec Security Systems,119999,02/05/2013,10184095
INSERTED DETAIL,Resources & Corporate Governance ,Street Cleansing,WSC00,Agency Staff,0003,491.89,G-Staff Ltd,120173,16/05/2013,10184554
INSERTED DETAIL,Resources & Corporate Governance ,Domestic Waste Collection,WWC00,Agency Staff,0003,1094.37,G-Staff Ltd,120173,16/05/2013,10184554
INSERTED DETAIL,Resources & Corporate Governance ,Trade Waste Collection,WWC01,Agency Staff,0003,585.59,G-Staff Ltd,120173,16/05/2013,10184554
INSERTED DETAIL,Resources & Corporate Governance ,Toilet Cleaning,WBC01,Agency Staff,0003,740.60,G-Staff Ltd,120173,23/05/2013,10184935
INSERTED DETAIL,Resources & Corporate Governance ,Domestic Waste Collection,WWC00,Agency Staff,0003,2632.53,G-Staff Ltd,120173,23/05/2013,10184935
INSERTED DETAIL,Resources & Corporate Governance ,Toilet Cleaning,WBC01,Agency Staff,0003,740.60,G-Staff Ltd,120173,30/05/2013,10185317
INSERTED DETAIL,Resources & Corporate Governance,Handy man,WHM00,Agency Staff,0003,123.00,G-Staff Ltd,120173,30/05/2013,10185317
INSERTED DETAIL,Resources & Corporate Governance ,Domestic Waste Collection,WWC00,Agency Staff,0003,3394.35,G-Staff Ltd,120173,30/05/2013,10185317
INSERTED DETAIL,Resources & Corporate Governance ,Toilet Cleaning,WBC01,Agency Staff,0003,740.60,G-Staff Ltd,120173,30/05/2013,10185407
INSERTED DETAIL,Resources & Corporate Governance ,Street Cleansing,WSC00,Agency Staff,0003,61.50,G-Staff Ltd,120173,30/05/2013,10185407
INSERTED DETAIL,Resources & Corporate Governance ,Domestic Waste Collection,WWC00,Agency Staff,0003,2092.74,G-Staff Ltd,120173,30/05/2013,10185407
INSERTED DETAIL,Resources & Corporate Governance ,Trade Waste Collection,WWC01,Agency Staff,0003,463.32,G-Staff Ltd,120173,30/05/2013,10185407
INSERTED DETAIL,Housing Revenue Account ,Supervision and Management General,MAN00,Movement Incentives,0454,500.00,REDACTED PERSONAL DATA,120518,02/05/2013,10184141
INSERTED DETAIL,Housing Revenue Account ,Supervision and Management General,MAN00,External Contractor & Operator,0742,600.00,Miss Jenny Wigley,120523,16/05/2013,10184061
INSERTED DETAIL,Resources & Corporate Governance ,Grounds Maintenance,WGM00,Vehicle Repair and Maintenance,0200,253.00,Smartpower,121369,09/05/2013,10184347
INSERTED DETAIL,Resources & Corporate Governance ,Street Cleansing,WSC00,Vehicle Repair and Maintenance,0200,253.00,Smartpower,121369,09/05/2013,10184347
INSERTED DETAIL,Resources & Corporate Governance ,Trade Waste Collection,WWC01,Vehicle Repair and Maintenance,0200,506.00,Smartpower,121369,09/05/2013,10184347
INSERTED DETAIL,Capital Program ,Housing Management System,HCE08,IT Capital Expenditure,5025,5700.00,Northgate Information Solutions UK Ltd,121606,02/05/2013,10183499
INSERTED DETAIL,Resources & Corporate Governance ,Maintenance of Customer Services Systems,CIS21,Software Maintenance,0374,23500.00,Northgate Information Solutions UK Ltd,121606,16/05/2013,10184200
INSERTED DETAIL,Housing Revenue Account ,Supervision and Management General,MAN00,Other Insurance Premiums,0440,5000.00,Travelers Insurance Co,121642,16/05/2013,10183831
INSERTED DETAIL,Sustainable Environment ,Caldecott Park/Town Centre Area,PKS00,External Contractor & Operator,0742,3460.00,Maxwell Amenity Ltd,122425,23/05/2013,10184427
INSERTED DETAIL,Resources & Corporate Governance ,Highways,WHG00,Materials,0303,162.40,Brinklow Quarry,122921,16/05/2013,10184501
INSERTED DETAIL,Housing Revenue Account ,Maintenance of Open Spaces,MOS00,External Contractor & Operator,0742,274.94,Brinklow Quarry,122921,16/05/2013,10184501
INSERTED DETAIL,Resources & Corporate Governance ,Highways,WHG00,External Contractor & Operator,0742,24.61,Brinklow Quarry,122921,16/05/2013,10184501
INSERTED DETAIL,Resources & Corporate Governance ,Central Telephone Service,TEL00,Telephone Expenses,0371,1224.19,Cable & Wireless/T/A Vodafone,123224,16/05/2013,10184397
INSERTED DETAIL,Resources & Corporate Governance ,Grounds Maintenance,WGM00,Materials,0303,1220.00,Rigby Taylor Ltd,123342,16/05/2013,10184435
INSERTED DETAIL,Housing Revenue Account ,Unplanned Maintenance and Repair,UMR00,R&M External Contractors,0100,481.20,Mike Bs Security Locksmith Ltd,123947,23/05/2013,10184697
INSERTED DETAIL,Resources & Corporate Governance ,Garage Internal,WVR01,Materials,0303,591.71,Shell U.K. Oil Products Limited,125672,09/05/2013,10184363
INSERTED DETAIL,Sustainable Environment,Regulatory Services,REG00,Software/Equipment Licences,0379,1061.49,Airwave Solutions Limited,126436,16/05/2013,10184710
INSERTED DETAIL,Resources & Corporate Governance,Handy man,WHM00,Vehicle Repair and Maintenance,0200,920.00,Guest Trucks,126437,30/05/2013,10185644
INSERTED DETAIL,Housing Revenue Account ,Unplanned Maintenance and Repair,UMR00,R&M External Contractors,0100,50.00,George and Company (Surveyors) Ltd,126668,16/05/2013,10184094
INSERTED DETAIL,Housing Revenue Account ,Property Maintenance,MAN23,External Contractor & Operator,0742,650.00,George and Company (Surveyors) Ltd,126668,16/05/2013,10184094
INSERTED DETAIL,,Balance Sheet,BS,Car Loan Scheme,9261,4110.00,U.M. Co,128666,30/05/2013,10185667
INSERTED DETAIL,Resources & Corporate Governance ,Grounds Maintenance,WGM00,Vehicle Repair and Maintenance,0200,34.33,ABS Limited,129026,16/05/2013,10184343
INSERTED DETAIL,Resources & Corporate Governance ,Highways,WHG00,Vehicle Repair and Maintenance,0200,47.80,ABS Limited,129026,16/05/2013,10184343
INSERTED DETAIL,Resources & Corporate Governance,Handy man,WHM00,Vehicle Repair and Maintenance,0200,8.86,ABS Limited,129026,16/05/2013,10184343
INSERTED DETAIL,Resources & Corporate Governance ,Street Cleansing,WSC00,Vehicle Repair and Maintenance,0200,7.26,ABS Limited,129026,16/05/2013,10184343
INSERTED DETAIL,Resources & Corporate Governance ,Domestic Waste Collection,WWC00,Vehicle Repair and Maintenance,0200,278.79,ABS Limited,129026,16/05/2013,10184343
INSERTED DETAIL,Resources & Corporate Governance ,Garage Internal,WVR01,Materials,0303,45.90,ABS Limited,129026,16/05/2013,10184343
INSERTED DETAIL,Resources & Corporate Governance,Other Elections,ELC01,Postal Voting Stationery,0360,6078.35,Print.UK.Com,129503,02/05/2013,10183833
INSERTED DETAIL,Sustainable Environment ,Caldecott Park/Town Centre Area,PKS00,External Contractor & Operator,0742,760.00,Complete Weed Control,129556,16/05/2013,10184445
INSERTED DETAIL,Resources & Corporate Governance ,"Communications, Consultation and Information Team",BTR20,Publicity & Marketing,0377,13500.00,Rugby FM,131249,16/05/2013,10184512
INSERTED DETAIL,Capital Program ,Open Spaces Refurbishment,LEI08,Capital Contract Payments,5000,2170.45,Sutcliffe Play Ltd,131511,02/05/2013,10183926
INSERTED DETAIL,Sustainable Environment,Regulatory Services,REG00,External Contractor & Operator,0742,750.00,Aecom Ltd,131603,16/05/2013,10184768
INSERTED DETAIL,Economy Development & Culture,Decrim. of Car Parking on street parking,DPE02,Cash Collection,0744,591.84,Jade Security Services Ltd,131711,16/05/2013,10184671
INSERTED DETAIL,Economy Development & Culture,Car Parks General,CPK01,Cash Collection,0744,1002.84,Jade Security Services Ltd,131711,16/05/2013,10184672
INSERTED DETAIL,Capital Program ,Disabled Facilities Grant,REN01,Capital Grants,5014,3874.00,D K Builders,131946,02/05/2013,10184047
INSERTED DETAIL,Capital Program ,Disabled Facilities Grant,REN01,Capital Grants,5014,3874.00,D K Builders,131946,09/05/2013,10184399
INSERTED DETAIL,Economy Development & Culture,Town Centre CCTV and Management,TVM00,Other Agencies,0734,20115.98,Rugby First Ltd - BID,133176,09/05/2013,10184382
INSERTED DETAIL,Economy Development & Culture,Town Centre CCTV and Management,TVM00,Other Agencies,0734,20115.98,Rugby First Ltd - BID,133176,09/05/2013,10184383
INSERTED DETAIL,Economy Development & Culture,Economic Development General,ECD00,Development Activities,0450,11000.00,Rugby First Ltd - BID,133176,23/05/2013,10184384
INSERTED DETAIL,Resources & Corporate Governance ,Highways,WHG00,Materials,0303,636.75,Breedon Aggregates England Limited,133309,09/05/2013,10184308
INSERTED DETAIL,Housing Revenue Account ,Unplanned Maintenance and Repair,UMR00,R&M External Contractors,0100,1362.90,Sunfish Services Ltd,133886,16/05/2013,10184843
INSERTED DETAIL,Housing Revenue Account ,Sheltered Housing,AGP00,Other Miscellaneous Expenses,0444,14412.00,Midland Heart Ltd,134018,16/05/2013,10184123
INSERTED DETAIL,Resources & Corporate Governance ,Garage Internal,WVR01,Materials,0303,957.20,Brenntag UK Limited,135098,23/05/2013,10184952
INSERTED DETAIL,Housing Revenue Account ,Alfred Green Close AP,AGP01,Electricity,0130,561.80,Southern Electric,135653,16/05/2013,10184733
INSERTED DETAIL,Housing Revenue Account ,John Thwaites Close AP,AGP08,Electricity,0130,216.57,Southern Electric,135653,16/05/2013,10184733
INSERTED DETAIL,Housing Revenue Account ,Pettiver Crescent I AP,AGP10,Electricity,0130,-51.49,Southern Electric,135653,16/05/2013,10184733
INSERTED DETAIL,Housing Revenue Account ,Stacey Court AP,AGP12,Electricity,0130,103.54,Southern Electric,135653,16/05/2013,10184733
INSERTED DETAIL,Housing Revenue Account ,Tanser Court AP,AGP17,Electricity,0130,-80.72,Southern Electric,135653,16/05/2013,10184733
INSERTED DETAIL,Housing Revenue Account ,Eliot Court AP,AGP25,Electricity,0130,200.40,Southern Electric,135653,16/05/2013,10184733
INSERTED DETAIL,Housing Revenue Account ,Assheton Close AP,AGP36,Electricity,0130,171.69,Southern Electric,135653,16/05/2013,10184733
INSERTED DETAIL,Housing Revenue Account ,Bennett Court/Warwick Road AP,AGP38,Electricity,0130,26.28,Southern Electric,135653,16/05/2013,10184733
INSERTED DETAIL,Housing Revenue Account ,Deepmore Road/Lytham Road AP,AGP42,Electricity,0130,432.47,Southern Electric,135653,16/05/2013,10184733
INSERTED DETAIL,Housing Revenue Account ,Edmondson Close Dunchurch AP,AGP44,Electricity,0130,453.98,Southern Electric,135653,16/05/2013,10184733
INSERTED DETAIL,Housing Revenue Account ,Harold Cox Place AP,AGP51,Electricity,0130,285.17,Southern Electric,135653,16/05/2013,10184733
INSERTED DETAIL,Housing Revenue Account ,Norman Road AP,AGP60,Electricity,0130,-62.42,Southern Electric,135653,16/05/2013,10184733
INSERTED DETAIL,Housing Revenue Account ,Parkfield Road/Lea Crescent AP,AGP71,Electricity,0130,263.30,Southern Electric,135653,16/05/2013,10184733
INSERTED DETAIL,Housing Revenue Account ,Miscellaneous AP,AGP99,Electricity,0130,18.56,Southern Electric,135653,16/05/2013,10184733
INSERTED DETAIL,Housing Revenue Account ,Supervision and Management General,MAN00,Electricity,0130,20.36,Southern Electric,135653,16/05/2013,10184733
INSERTED DETAIL,Resources & Corporate Governance ,IT Procurement,CMP00,IT Capital Expenditure,5025,700.54,Switchshop Limited,136328,30/05/2013,10185660
INSERTED DETAIL,Resources & Corporate Governance ,WSU Depot,WDP00,Telephone Expenses,0371,540.00,Terry Alexander Installations,137194,23/05/2013,10184882
INSERTED DETAIL,Resources & Corporate Governance ,Street Cleansing,WSC00,Materials,0303,790.50,Danline International Ltd,137588,30/05/2013,10185324
INSERTED DETAIL,Resources & Corporate Governance ,"Communications, Consultation and Information Team",BTR20,Publicity & Marketing,0377,499.00,ProgrammeMaster Ltd,138019,30/05/2013,10185304
INSERTED DETAIL,Resources & Corporate Governance,Other Elections,ELC01,External Printing,0352,4310.85,Smith & Ouzman Ltd,138682,02/05/2013,10183832
INSERTED DETAIL,Resources & Corporate Governance,Other Elections,ELC01,External Printing,0352,680.00,Smith & Ouzman Ltd,138682,16/05/2013,10184709
INSERTED DETAIL,Resources & Corporate Governance ,Town Hall,OFF00,Contract Cleaning,0170,4280.55,Regent Office Care Ltd T/A Regent Cleaning,138934,02/05/2013,10183240
INSERTED DETAIL,Resources & Corporate Governance ,WSU Depot,WDP00,Contract Cleaning,0170,219.00,Regent Office Care Ltd T/A Regent Cleaning,138934,02/05/2013,10183240
INSERTED DETAIL,Resources & Corporate Governance ,Grounds Maintenance,WGM00,Contract Cleaning,0170,147.50,Regent Office Care Ltd T/A Regent Cleaning,138934,02/05/2013,10183240
INSERTED DETAIL,Housing Revenue Account ,Unplanned Maintenance and Repair,UMR00,R&M External Contractors,0100,1505.22,Regent Office Care Ltd T/A Regent Cleaning,138934,02/05/2013,10184103
INSERTED DETAIL,Housing Revenue Account ,Sheltered Housing,AGP00,Contract Cleaning,0170,14297.47,Regent Office Care Ltd T/A Regent Cleaning,138934,23/05/2013,10184679
INSERTED DETAIL,Sustainable Inclusive Communities,Housing Options Team,HOT00,Contract Cleaning,0170,134.76,Regent Office Care Ltd T/A Regent Cleaning,138934,23/05/2013,10184679
INSERTED DETAIL,Housing Revenue Account ,Estate Management,MAN22,Contract Cleaning,0170,3078.90,Regent Office Care Ltd T/A Regent Cleaning,138934,23/05/2013,10184679
INSERTED DETAIL,Housing Revenue Account ,Multi-Storey Flats,MSF00,Contract Cleaning,0170,1731.90,Regent Office Care Ltd T/A Regent Cleaning,138934,23/05/2013,10184679
INSERTED DETAIL,Resources & Corporate Governance ,Town Hall,OFF00,Contract Cleaning,0170,4280.55,Regent Office Care Ltd T/A Regent Cleaning,138934,16/05/2013,10184680
INSERTED DETAIL,Resources & Corporate Governance ,WSU Depot,WDP00,Contract Cleaning,0170,219.00,Regent Office Care Ltd T/A Regent Cleaning,138934,16/05/2013,10184680
INSERTED DETAIL,Resources & Corporate Governance ,Grounds Maintenance,WGM00,Contract Cleaning,0170,147.50,Regent Office Care Ltd T/A Regent Cleaning,138934,16/05/2013,10184680
INSERTED DETAIL,Housing Revenue Account ,Unplanned Maintenance and Repair,UMR00,R&M External Contractors,0100,1842.30,Regent Office Care Ltd T/A Regent Cleaning,138934,16/05/2013,10184849
INSERTED DETAIL,Housing Revenue Account ,Unplanned Maintenance and Repair,UMR00,R&M External Contractors,0100,1217.91,Regent Office Care Ltd T/A Regent Cleaning,138934,30/05/2013,10185673
INSERTED DETAIL,Housing Revenue Account ,Supervision and Management General,MAN00,Debt Counselling,0455,18250.00,Bedworth Rugby & Nuneaton CAB,139552,16/05/2013,10184854
INSERTED DETAIL,Sustainable Inclusive Communities,CL Grants,CGS00,Grants To Voluntary Organisations,0720,55000.00,Bedworth Rugby & Nuneaton CAB,139552,16/05/2013,10184854
INSERTED DETAIL,Housing Revenue Account ,Asbestos Surveys,UMR05,R&M External Contractors,0100,260.00,Rider Levett Bucknall UK Ltd,139918,16/05/2013,10184846
INSERTED DETAIL,Capital Program ,Electric to Gas Conversions,HIM04,Capital Contract Payments,5000,260.00,Rider Levett Bucknall UK Ltd,139918,16/05/2013,10184846
INSERTED DETAIL,Capital Program ,Viaduct Cycleways,CYC02,Capital Contract Payments,5000,500.00,Goddard Consulting LLP,140373,16/05/2013,10184742
INSERTED DETAIL,Resources & Corporate Governance ,Customer and Information Strategy,CIS10,Telephone Expenses,0371,663.08,Zen Internet Ltd,141612,02/05/2013,10183526
INSERTED DETAIL,Resources & Corporate Governance ,Council Tax and NNDR Collection,CTX01,Software Maintenance,0374,42.54,Zen Internet Ltd,141612,02/05/2013,10183526
INSERTED DETAIL,Sustainable Environment ,Caldecott Park/Town Centre Area,PKS00,R&M External Contractors,0100,1005.00,Fountains Direct Limited,144391,16/05/2013,10184550
INSERTED DETAIL,Resources & Corporate Governance ,Support Services,CIS20,Software Maintenance,0374,3683.00,thetechnologyforge,145065,23/05/2013,10184927
INSERTED DETAIL,Housing Revenue Account ,Control Centre CCTV,CCE01,External Contractor & Operator,0742,15928.66,Securitas Security Personnel Ltd,145079,16/05/2013,10184122
INSERTED DETAIL,Housing Revenue Account ,Control Centre CCTV,CCE01,External Contractor & Operator,0742,15928.66,Securitas Security Personnel Ltd,145079,30/05/2013,10185568
INSERTED DETAIL,Housing Revenue Account ,Property Maintenance,MAN23,Agency Staff,0003,1044.00,James Andrews Recruitment Solutions Ltd,145100,16/05/2013,10183920
INSERTED DETAIL,Housing Revenue Account ,Property Maintenance,MAN23,Agency Staff,0003,1232.50,James Andrews Recruitment Solutions Ltd,145100,16/05/2013,10183921
INSERTED DETAIL,Housing Revenue Account ,Property Maintenance,MAN23,Agency Staff,0003,1073.00,James Andrews Recruitment Solutions Ltd,145100,16/05/2013,10183922
INSERTED DETAIL,Sustainable Inclusive Communities,Housing Options Team,HOT00,Agency Staff,0003,611.27,James Andrews Recruitment Solutions Ltd,145100,09/05/2013,10184175
INSERTED DETAIL,Sustainable Inclusive Communities,Housing Options Team,HOT00,Agency Staff,0003,652.30,James Andrews Recruitment Solutions Ltd,145100,09/05/2013,10184176
INSERTED DETAIL,Housing Revenue Account ,Property Maintenance,MAN23,Agency Staff,0003,1116.50,James Andrews Recruitment Solutions Ltd,145100,16/05/2013,10184177
INSERTED DETAIL,Housing Revenue Account ,Property Maintenance,MAN23,Agency Staff,0003,1073.00,James Andrews Recruitment Solutions Ltd,145100,16/05/2013,10184178
INSERTED DETAIL,Sustainable Inclusive Communities,Housing Options Team,HOT00,Agency Staff,0003,603.07,James Andrews Recruitment Solutions Ltd,145100,23/05/2013,10184586
INSERTED DETAIL,Housing Revenue Account ,Property Maintenance,MAN23,Agency Staff,0003,1086.50,James Andrews Recruitment Solutions Ltd,145100,16/05/2013,10184588
INSERTED DETAIL,Housing Revenue Account ,Property Maintenance,MAN23,Agency Staff,0003,1073.00,James Andrews Recruitment Solutions Ltd,145100,16/05/2013,10184589
INSERTED DETAIL,Housing Revenue Account ,Property Maintenance,MAN23,Agency Staff,0003,435.00,James Andrews Recruitment Solutions Ltd,145100,16/05/2013,10184590
INSERTED DETAIL,Housing Revenue Account ,Property Maintenance,MAN23,Agency Staff,0003,1189.00,James Andrews Recruitment Solutions Ltd,145100,16/05/2013,10184591
INSERTED DETAIL,Housing Revenue Account ,Property Maintenance,MAN23,Agency Staff,0003,1160.00,James Andrews Recruitment Solutions Ltd,145100,16/05/2013,10184592
INSERTED DETAIL,Housing Revenue Account ,Property Maintenance,MAN23,Agency Staff,0003,1000.50,James Andrews Recruitment Solutions Ltd,145100,16/05/2013,10184593
INSERTED DETAIL,Housing Revenue Account ,Property Maintenance,MAN23,Agency Staff,0003,975.00,James Andrews Recruitment Solutions Ltd,145100,16/05/2013,10184594
INSERTED DETAIL,Housing Revenue Account ,Property Maintenance,MAN23,Agency Staff,0003,975.00,James Andrews Recruitment Solutions Ltd,145100,16/05/2013,10184595
INSERTED DETAIL,Housing Revenue Account ,Property Maintenance,MAN23,Agency Staff,0003,975.00,James Andrews Recruitment Solutions Ltd,145100,16/05/2013,10184596
INSERTED DETAIL,Housing Revenue Account ,Property Maintenance,MAN23,Agency Staff,0003,884.50,James Andrews Recruitment Solutions Ltd,145100,16/05/2013,10184647
INSERTED DETAIL,Housing Revenue Account ,Property Maintenance,MAN23,Agency Staff,0003,993.25,James Andrews Recruitment Solutions Ltd,145100,16/05/2013,10184867
INSERTED DETAIL,Sustainable Inclusive Communities,Housing Options Team,HOT00,Agency Staff,0003,492.30,James Andrews Recruitment Solutions Ltd,145100,23/05/2013,10184868
INSERTED DETAIL,Housing Revenue Account ,Property Maintenance,MAN23,Agency Staff,0003,1232.50,James Andrews Recruitment Solutions Ltd,145100,30/05/2013,10185303
INSERTED DETAIL,Sustainable Environment ,Caldecott Park/Town Centre Area,PKS00,External Contractor & Operator,0742,1934.11,Pictorial Meadows Ltd,145233,16/05/2013,10184353
INSERTED DETAIL,Sustainable Environment ,Caldecott Park/Town Centre Area,PKS00,External Contractor & Operator,0742,4175.00,Beingfrank Physical Theatre Ltd,145323,16/05/2013,10184621
INSERTED DETAIL,Sustainable Inclusive Communities,CL Grants,CGS00,Grants To Voluntary Organisations,0720,15000.00,Rugby Credit Union,145332,16/05/2013,10184871
INSERTED DETAIL,Resources & Corporate Governance ,Street Cleansing,WSC00,Agency Staff,0003,864.13,Blue Arrow Limited,145492,16/05/2013,10184325
INSERTED DETAIL,Resources & Corporate Governance ,Domestic Waste Collection,WWC00,Agency Staff,0003,186.68,Blue Arrow Limited,145492,16/05/2013,10184325
INSERTED DETAIL,Resources & Corporate Governance ,Trade Waste Collection,WWC01,Agency Staff,0003,397.96,Blue Arrow Limited,145492,16/05/2013,10184325
INSERTED DETAIL,Resources & Corporate Governance ,Street Cleansing,WSC00,Agency Staff,0003,504.78,Blue Arrow Limited,145492,16/05/2013,10184460
INSERTED DETAIL,Resources & Corporate Governance ,Domestic Waste Collection,WWC00,Agency Staff,0003,919.66,Blue Arrow Limited,145492,16/05/2013,10184460
INSERTED DETAIL,Resources & Corporate Governance ,Trade Waste Collection,WWC01,Agency Staff,0003,504.45,Blue Arrow Limited,145492,16/05/2013,10184460
INSERTED DETAIL,Resources & Corporate Governance,Handy man,WHM00,Agency Staff,0003,297.85,Blue Arrow Limited,145492,16/05/2013,10184782
INSERTED DETAIL,Resources & Corporate Governance ,Street Cleansing,WSC00,Agency Staff,0003,747.40,Blue Arrow Limited,145492,16/05/2013,10184782
INSERTED DETAIL,Resources & Corporate Governance ,Domestic Waste Collection,WWC00,Agency Staff,0003,297.85,Blue Arrow Limited,145492,16/05/2013,10184782
INSERTED DETAIL,Resources & Corporate Governance ,Trade Waste Collection,WWC01,Agency Staff,0003,504.45,Blue Arrow Limited,145492,16/05/2013,10184782
INSERTED DETAIL,Resources & Corporate Governance,Handy man,WHM00,Agency Staff,0003,497.63,Blue Arrow Limited,145492,23/05/2013,10185206
INSERTED DETAIL,Resources & Corporate Governance ,Street Cleansing,WSC00,Agency Staff,0003,824.48,Blue Arrow Limited,145492,23/05/2013,10185206
INSERTED DETAIL,Resources & Corporate Governance ,Domestic Waste Collection,WWC00,Agency Staff,0003,268.51,Blue Arrow Limited,145492,23/05/2013,10185206
INSERTED DETAIL,Resources & Corporate Governance ,Trade Waste Collection,WWC01,Agency Staff,0003,634.80,Blue Arrow Limited,145492,23/05/2013,10185206
INSERTED DETAIL,Resources & Corporate Governance,Handy man,WHM00,Agency Staff,0003,512.36,Blue Arrow Limited,145492,30/05/2013,10185521
INSERTED DETAIL,Resources & Corporate Governance ,Street Cleansing,WSC00,Agency Staff,0003,803.75,Blue Arrow Limited,145492,30/05/2013,10185521
INSERTED DETAIL,Resources & Corporate Governance ,Domestic Waste Collection,WWC00,Agency Staff,0003,358.23,Blue Arrow Limited,145492,30/05/2013,10185521
INSERTED DETAIL,Resources & Corporate Governance ,Trade Waste Collection,WWC01,Agency Staff,0003,504.45,Blue Arrow Limited,145492,30/05/2013,10185521
INSERTED DETAIL,Capital Program ,Vehicle Workshop Extension,VWE00,Capital Contract Payments,5000,17853.75,Three Counties Steel Buildings Limited,145562,09/05/2013,10184135
INSERTED DETAIL,Capital Program ,Disabled Facilities Grant,REN01,Capital Grants,5014,4035.00,Inhouse Renovations,145963,02/05/2013,10184091
INSERTED DETAIL,Capital Program ,Disabled Facilities Grant,REN01,Capital Grants,5014,3704.49,Inhouse Renovations,145963,16/05/2013,10184649
INSERTED DETAIL,Resources & Corporate Governance,Corporate Property R&M,CPA01,R&M External Contractors,0100,743.00,Stanair Industrial Services Ltd,146499,02/05/2013,10184016
INSERTED DETAIL,Resources & Corporate Governance,Handy man,WHM00,Materials,0303,614.30,Sapphire Glass Merchants,146549,23/05/2013,10184820
INSERTED DETAIL,Resources & Corporate Governance ,Street Cleansing,WSC00,Vehicle Repair and Maintenance,0200,1720.00,RT Sweeper Services Ltd,146604,16/05/2013,10184440
INSERTED DETAIL,Resources & Corporate Governance,Handy man,WHM00,External Contractor & Operator,0742,440.00,Mick Brown Plastering,146699,02/05/2013,10184032
INSERTED DETAIL,Resources & Corporate Governance,Handy man,WHM00,External Contractor & Operator,0742,612.00,Mick Brown Plastering,146699,02/05/2013,10184038
INSERTED DETAIL,Resources & Corporate Governance,Handy man,WHM00,External Contractor & Operator,0742,481.00,Mick Brown Plastering,146699,02/05/2013,10184039
INSERTED DETAIL,Resources & Corporate Governance ,WSU Depot,WDP00,Materials,0303,1595.00,Weightron Bilanciai Limited,146759,16/05/2013,10184685
INSERTED DETAIL,Carbon Management Plan,Carbon Management Plan,LCF01,Capital Contract Payments,5000,60446.60,Ecolight,146781,02/05/2013,10183896
INSERTED DETAIL,Resources & Corporate Governance ,Domestic Waste Collection,WWC00,Agency Staff,0003,342.40,Fresh Recruitment Solutions (FRS) Ltd,146784,02/05/2013,10183934
INSERTED DETAIL,Resources & Corporate Governance ,Trade Waste Collection,WWC01,Agency Staff,0003,81.53,Fresh Recruitment Solutions (FRS) Ltd,146784,02/05/2013,10183934
INSERTED DETAIL,Resources & Corporate Governance ,Domestic Waste Collection,WWC00,Agency Staff,0003,503.90,Fresh Recruitment Solutions (FRS) Ltd,146784,23/05/2013,10184948
INSERTED DETAIL,Resources & Corporate Governance ,Domestic Waste Collection,WWC00,Agency Staff,0003,503.90,Fresh Recruitment Solutions (FRS) Ltd,146784,23/05/2013,10184949
INSERTED DETAIL,Resources & Corporate Governance ,Domestic Waste Collection,WWC00,Agency Staff,0003,503.90,Fresh Recruitment Solutions (FRS) Ltd,146784,23/05/2013,10184950
INSERTED DETAIL,Economy Development & Culture,Building Control Services,BCS00,Postage & Distribution,0370,0.70,TNT Post Midlands Ltd,146983,02/05/2013,10180622
INSERTED DETAIL,Economy Development & Culture,Building Control Services Non-Fee Earning Account,BCS01,Postage & Distribution,0370,0.70,TNT Post Midlands Ltd,146983,02/05/2013,10180622
INSERTED DETAIL,Economy Development & Culture,Building Regulation Fee Earning Account,BCS99,Postage & Distribution,0370,12.57,TNT Post Midlands Ltd,146983,02/05/2013,10180622
INSERTED DETAIL,Resources & Corporate Governance,Central Business Support Services,CSS15,Postage & Distribution,0370,42.61,TNT Post Midlands Ltd,146983,02/05/2013,10180622
INSERTED DETAIL,Resources & Corporate Governance ,Council Tax and NNDR Collection,CTX01,Postage & Distribution,0370,180.84,TNT Post Midlands Ltd,146983,02/05/2013,10180622
INSERTED DETAIL,Resources & Corporate Governance ,Electoral Registration,ERG00,Postage & Distribution,0370,130.83,TNT Post Midlands Ltd,146983,02/05/2013,10180622
INSERTED DETAIL,Sustainable Inclusive Communities,Housing Benefit Administration,HBA00,Postage & Distribution,0370,125.93,TNT Post Midlands Ltd,146983,02/05/2013,10180622
INSERTED DETAIL,Housing Revenue Account ,Supervision and Management General,MAN00,Postage & Distribution,0370,57.82,TNT Post Midlands Ltd,146983,02/05/2013,10180622
INSERTED DETAIL,Economy Development & Culture,Visitor Centre,VSC00,Postage & Distribution,0370,10.93,TNT Post Midlands Ltd,146983,02/05/2013,10180622
INSERTED DETAIL,Resources & Corporate Governance ,General Administration,WAD00,Postage & Distribution,0370,3.82,TNT Post Midlands Ltd,146983,02/05/2013,10180622
INSERTED DETAIL,Economy Development & Culture,Art Gallery and Museum,AGM00,Postage & Distribution,0370,0.30,TNT Post Midlands Ltd,146983,09/05/2013,10183876
INSERTED DETAIL,Economy Development & Culture,Building Control Services,BCS00,Postage & Distribution,0370,0.57,TNT Post Midlands Ltd,146983,09/05/2013,10183876
INSERTED DETAIL,Economy Development & Culture,Building Control Services Non-Fee Earning Account,BCS01,Postage & Distribution,0370,0.57,TNT Post Midlands Ltd,146983,09/05/2013,10183876
INSERTED DETAIL,Economy Development & Culture,Building Regulation Fee Earning Account,BCS99,Postage & Distribution,0370,10.19,TNT Post Midlands Ltd,146983,09/05/2013,10183876
INSERTED DETAIL,Resources & Corporate Governance,Central Business Support Services,CSS15,Postage & Distribution,0370,51.96,TNT Post Midlands Ltd,146983,09/05/2013,10183876
INSERTED DETAIL,Resources & Corporate Governance ,Council Tax and NNDR Collection,CTX01,Postage & Distribution,0370,127.51,TNT Post Midlands Ltd,146983,09/05/2013,10183876
INSERTED DETAIL,Resources & Corporate Governance ,Electoral Registration,ERG00,Postage & Distribution,0370,253.32,TNT Post Midlands Ltd,146983,09/05/2013,10183876
INSERTED DETAIL,Sustainable Inclusive Communities,Housing Benefit Administration,HBA00,Postage & Distribution,0370,111.39,TNT Post Midlands Ltd,146983,09/05/2013,10183876
INSERTED DETAIL,Housing Revenue Account ,Supervision and Management General,MAN00,Postage & Distribution,0370,475.11,TNT Post Midlands Ltd,146983,09/05/2013,10183876
INSERTED DETAIL,Economy Development & Culture,Visitor Centre,VSC00,Postage & Distribution,0370,69.58,TNT Post Midlands Ltd,146983,09/05/2013,10183876
INSERTED DETAIL,Resources & Corporate Governance ,General Administration,WAD00,Postage & Distribution,0370,5.38,TNT Post Midlands Ltd,146983,09/05/2013,10183876
INSERTED DETAIL,Economy Development & Culture,Art Gallery and Museum,AGM00,Postage & Distribution,0370,1.12,TNT Post Midlands Ltd,146983,09/05/2013,10183878
INSERTED DETAIL,Economy Development & Culture,Building Control Services,BCS00,Postage & Distribution,0370,0.10,TNT Post Midlands Ltd,146983,09/05/2013,10183878
INSERTED DETAIL,Economy Development & Culture,Building Control Services Non-Fee Earning Account,BCS01,Postage & Distribution,0370,0.10,TNT Post Midlands Ltd,146983,09/05/2013,10183878
INSERTED DETAIL,Economy Development & Culture,Building Regulation Fee Earning Account,BCS99,Postage & Distribution,0370,1.71,TNT Post Midlands Ltd,146983,09/05/2013,10183878
INSERTED DETAIL,Resources & Corporate Governance,Central Business Support Services,CSS15,Postage & Distribution,0370,32.45,TNT Post Midlands Ltd,146983,09/05/2013,10183878
INSERTED DETAIL,Resources & Corporate Governance ,Council Tax and NNDR Collection,CTX01,Postage & Distribution,0370,13.27,TNT Post Midlands Ltd,146983,09/05/2013,10183878
INSERTED DETAIL,Resources & Corporate Governance ,Electoral Registration,ERG00,Postage & Distribution,0370,0.34,TNT Post Midlands Ltd,146983,09/05/2013,10183878
INSERTED DETAIL,Sustainable Inclusive Communities,Housing Benefit Administration,HBA00,Postage & Distribution,0370,37.85,TNT Post Midlands Ltd,146983,09/05/2013,10183878
INSERTED DETAIL,Housing Revenue Account ,Supervision and Management General,MAN00,Postage & Distribution,0370,850.57,TNT Post Midlands Ltd,146983,09/05/2013,10183878
INSERTED DETAIL,Economy Development & Culture,Visitor Centre,VSC00,Postage & Distribution,0370,25.56,TNT Post Midlands Ltd,146983,09/05/2013,10183878
INSERTED DETAIL,Resources & Corporate Governance ,General Administration,WAD00,Postage & Distribution,0370,2.01,TNT Post Midlands Ltd,146983,09/05/2013,10183878
INSERTED DETAIL,Economy Development & Culture,Art Gallery and Museum,AGM00,Postage & Distribution,0370,0.46,TNT Post Midlands Ltd,146983,16/05/2013,10184289
INSERTED DETAIL,Economy Development & Culture,Building Control Services,BCS00,Postage & Distribution,0370,0.59,TNT Post Midlands Ltd,146983,16/05/2013,10184289
INSERTED DETAIL,Economy Development & Culture,Building Control Services Non-Fee Earning Account,BCS01,Postage & Distribution,0370,0.59,TNT Post Midlands Ltd,146983,16/05/2013,10184289
INSERTED DETAIL,Economy Development & Culture,Building Regulation Fee Earning Account,BCS99,Postage & Distribution,0370,10.71,TNT Post Midlands Ltd,146983,16/05/2013,10184289
INSERTED DETAIL,Resources & Corporate Governance,Central Business Support Services,CSS15,Postage & Distribution,0370,35.35,TNT Post Midlands Ltd,146983,16/05/2013,10184289
INSERTED DETAIL,Resources & Corporate Governance ,Council Tax and NNDR Collection,CTX01,Postage & Distribution,0370,163.80,TNT Post Midlands Ltd,146983,16/05/2013,10184289
INSERTED DETAIL,Resources & Corporate Governance ,Electoral Registration,ERG00,Postage & Distribution,0370,50.87,TNT Post Midlands Ltd,146983,16/05/2013,10184289
INSERTED DETAIL,Sustainable Inclusive Communities,Housing Benefit Administration,HBA00,Postage & Distribution,0370,67.94,TNT Post Midlands Ltd,146983,16/05/2013,10184289
INSERTED DETAIL,Housing Revenue Account ,Supervision and Management General,MAN00,Postage & Distribution,0370,43.35,TNT Post Midlands Ltd,146983,16/05/2013,10184289
INSERTED DETAIL,Economy Development & Culture,Visitor Centre,VSC00,Postage & Distribution,0370,1.37,TNT Post Midlands Ltd,146983,16/05/2013,10184289
INSERTED DETAIL,Resources & Corporate Governance ,General Administration,WAD00,Postage & Distribution,0370,374.94,TNT Post Midlands Ltd,146983,16/05/2013,10184289
INSERTED DETAIL,Economy Development & Culture,Art Gallery and Museum,AGM00,Postage & Distribution,0370,1.27,TNT Post Midlands Ltd,146983,23/05/2013,10184691
INSERTED DETAIL,Economy Development & Culture,Building Control Services,BCS00,Postage & Distribution,0370,1.16,TNT Post Midlands Ltd,146983,23/05/2013,10184691
INSERTED DETAIL,Economy Development & Culture,Building Control Services Non-Fee Earning Account,BCS01,Postage & Distribution,0370,1.17,TNT Post Midlands Ltd,146983,23/05/2013,10184691
INSERTED DETAIL,Economy Development & Culture,Building Regulation Fee Earning Account,BCS99,Postage & Distribution,0370,20.97,TNT Post Midlands Ltd,146983,23/05/2013,10184691
INSERTED DETAIL,Resources & Corporate Governance,Central Business Support Services,CSS15,Postage & Distribution,0370,84.77,TNT Post Midlands Ltd,146983,23/05/2013,10184691
INSERTED DETAIL,Resources & Corporate Governance ,Council Tax and NNDR Collection,CTX01,Postage & Distribution,0370,272.93,TNT Post Midlands Ltd,146983,23/05/2013,10184691
INSERTED DETAIL,Resources & Corporate Governance ,Electoral Registration,ERG00,Postage & Distribution,0370,70.84,TNT Post Midlands Ltd,146983,23/05/2013,10184691
INSERTED DETAIL,Sustainable Inclusive Communities,Housing Benefit Administration,HBA00,Postage & Distribution,0370,161.61,TNT Post Midlands Ltd,146983,23/05/2013,10184691
INSERTED DETAIL,Housing Revenue Account ,Supervision and Management General,MAN00,Postage & Distribution,0370,78.43,TNT Post Midlands Ltd,146983,23/05/2013,10184691
INSERTED DETAIL,Resources & Corporate Governance ,General Administration,WAD00,Postage & Distribution,0370,9.17,TNT Post Midlands Ltd,146983,23/05/2013,10184691
INSERTED DETAIL,Economy Development & Culture,Building Control Services,BCS00,Postage & Distribution,0370,0.85,TNT Post Midlands Ltd,146983,30/05/2013,10185104
INSERTED DETAIL,Economy Development & Culture,Building Control Services Non-Fee Earning Account,BCS01,Postage & Distribution,0370,0.86,TNT Post Midlands Ltd,146983,30/05/2013,10185104
INSERTED DETAIL,Economy Development & Culture,Building Regulation Fee Earning Account,BCS99,Postage & Distribution,0370,15.39,TNT Post Midlands Ltd,146983,30/05/2013,10185104
INSERTED DETAIL,Resources & Corporate Governance,Central Business Support Services,CSS15,Postage & Distribution,0370,38.78,TNT Post Midlands Ltd,146983,30/05/2013,10185104
INSERTED DETAIL,Resources & Corporate Governance ,Council Tax and NNDR Collection,CTX01,Postage & Distribution,0370,182.30,TNT Post Midlands Ltd,146983,30/05/2013,10185104
INSERTED DETAIL,Resources & Corporate Governance ,Electoral Registration,ERG00,Postage & Distribution,0370,12.28,TNT Post Midlands Ltd,146983,30/05/2013,10185104
INSERTED DETAIL,Sustainable Inclusive Communities,Housing Benefit Administration,HBA00,Postage & Distribution,0370,118.16,TNT Post Midlands Ltd,146983,30/05/2013,10185104
INSERTED DETAIL,Housing Revenue Account ,Supervision and Management General,MAN00,Postage & Distribution,0370,178.31,TNT Post Midlands Ltd,146983,30/05/2013,10185104
INSERTED DETAIL,Resources & Corporate Governance ,General Administration,WAD00,Postage & Distribution,0370,9.45,TNT Post Midlands Ltd,146983,30/05/2013,10185104
INSERTED DETAIL,Resources & Corporate Governance ,Customer and Information Strategy,CIS10,Hardware Maintenance,0376,420.00,Sapphire Technologies Ltd,147128,23/05/2013,10184769
INSERTED DETAIL,Resources & Corporate Governance ,Domestic Waste Collection,WWC00,External Contractor & Operator,0742,900.00,James Baxter Haulage Ltd,147159,16/05/2013,10184664
INSERTED DETAIL,Resources & Corporate Governance ,Domestic Waste Collection,WWC00,External Contractor & Operator,0742,900.00,James Baxter Haulage Ltd,147159,16/05/2013,10184737
INSERTED DETAIL,Capital Program ,Queen's Diamond Jubilee Leisure Centre Project,LEI03,Capital Contract Payments,5000,700.00,B3 Architects,147190,02/05/2013,10184054
INSERTED DETAIL,Capital Program ,Queen's Diamond Jubilee Leisure Centre Project,LEI03,Capital Contract Payments,5000,4875.00,B3 Architects,147190,16/05/2013,10184125
INSERTED DETAIL,Resources & Corporate Governance ,Human Resources Centralised Services,RES31,Training fees,0011,582.00,Globe Training,147192,09/05/2013,10184486
INSERTED DETAIL,Resources & Corporate Governance ,Human Resources Centralised Services,RES31,Training fees,0011,582.00,Globe Training,147192,30/05/2013,10185545
INSERTED DETAIL,Resources & Corporate Governance,Handy man,WHM00,External Contractor & Operator,0742,868.50,C H Electrical (Leics) Ltd,147209,02/05/2013,10183848
INSERTED DETAIL,Resources & Corporate Governance,Handy man,WHM00,Tools,0304,2699.90,ECA Supplies (Coventry) Limited,147276,23/05/2013,10184893
INSERTED DETAIL,Resources & Corporate Governance ,Domestic Waste Collection,WWC00,Contract Hire,0220,1110.00,Trash UK Limited,147379,23/05/2013,10184918
INSERTED DETAIL,Sustainable Environment ,Cemeteries General,CEM00,R&M External Contractors,0100,4111.88,Arden Construction Ltd,147430,23/05/2013,10184770
INSERTED DETAIL,Capital Program ,Cemetery Infrastructure Work,BUR05,Capital Contract Payments,5000,3200.00,Arden Construction Ltd,147430,23/05/2013,10184770
INSERTED DETAIL,Housing Revenue Account ,Property Maintenance,MAN23,Consultancy Costs,0740,525.00,Howard Ward Associates LLP,147433,30/05/2013,10185364
INSERTED DETAIL,Capital Program ,Kitchen Modifications,HIK10,Capital Contract Payments,5000,3407.05,Rixonway Kitchens Ltd,147446,30/05/2013,10185578
INSERTED DETAIL,Capital Program ,Disabled Facilities Grant,REN01,Capital Grants,5014,4650.00,Pollards Property Solution,147541,30/05/2013,10184906
INSERTED DETAIL,Sustainable Environment ,Caldecott Park/Town Centre Area,PKS00,Maintenance of Equipment,0301,485.00,Gavin Jones (Midlands) Ltd,147569,16/05/2013,10184448
INSERTED DETAIL,Capital Program ,Open Spaces Refurbishment,LEI08,Capital Contract Payments,5000,450.00,Gavin Jones (Midlands) Ltd,147569,16/05/2013,10184587
INSERTED DETAIL,Resources & Corporate Governance ,General Financial Services,GFS00,Subscriptions,0421,2645.00,LG Futures Ltd,147641,30/05/2013,10184718
INSERTED DETAIL,Sustainable Environment,Regulatory Services,REG00,External Contractor & Operator,0742,2512.20,Environmental Scientifics Group,147697,16/05/2013,10184469
INSERTED DETAIL,Resources & Corporate Governance ,General Administration,WAD00,Training fees,0011,550.00,Chris Tallis Farm Machinery Limited,147758,30/05/2013,10185329
INSERTED DETAIL,Sustainable Environment ,Caldecott Park/Town Centre Area,PKS00,External Contractor & Operator,0742,580.57,PRS For Music,147770,02/05/2013,10183905
INSERTED DETAIL,Resources & Corporate Governance ,"Communications, Consultation and Information Team",BTR20,Publicity & Marketing,0377,2910.00,Cole Creative Communications Ltd,147857,16/05/2013,10184466
INSERTED DETAIL,Resources & Corporate Governance ,"Communications, Consultation and Information Team",BTR20,Publicity & Marketing,0377,1050.00,Cole Creative Communications Ltd,147857,16/05/2013,10184467
INSERTED DETAIL,Resources & Corporate Governance ,"Communications, Consultation and Information Team",BTR20,Publicity & Marketing,0377,1490.00,Cole Creative Communications Ltd,147857,16/05/2013,10184468
INSERTED DETAIL,Resources & Corporate Governance ,"Communications, Consultation and Information Team",BTR20,Publicity & Marketing,0377,3600.00,Cole Creative Communications Ltd,147857,23/05/2013,10185291
INSERTED DETAIL,Resources & Corporate Governance ,"Communications, Consultation and Information Team",BTR20,Publicity & Marketing,0377,425.00,Cole Creative Communications Ltd,147857,30/05/2013,10185581
INSERTED DETAIL,Resources & Corporate Governance ,"Communications, Consultation and Information Team",BTR20,Publicity & Marketing,0377,2250.00,Cole Creative Communications Ltd,147857,30/05/2013,10185582
INSERTED DETAIL,Resources & Corporate Governance ,"Communications, Consultation and Information Team",BTR20,Publicity & Marketing,0377,7400.00,Cole Creative Communications Ltd,147857,30/05/2013,10185585
INSERTED DETAIL,Resources & Corporate Governance,Handy man,WHM00,External Contractor & Operator,0742,484.00,Coventry Garage Doors,147883,02/05/2013,10183417
INSERTED DETAIL,Resources & Corporate Governance,Handy man,WHM00,External Contractor & Operator,0742,484.00,Coventry Garage Doors,147883,23/05/2013,10184888
INSERTED DETAIL,Resources & Corporate Governance ,Street Cleansing,WSC00,Agency Staff,0003,461.41,3b2 Recruitment Ltd T/A Darren Bell Recruitment,147938,23/05/2013,10185209
INSERTED DETAIL,Resources & Corporate Governance ,Safety and Resilience,EPL00,Software/Equipment Licences,0379,1026.00,Ultra Electronics Ltd (Command & Control Systems),147946,16/05/2013,10181321
INSERTED DETAIL,Capital Program ,Queen's Diamond Jubilee Leisure Centre Project,LEI03,Capital Contract Payments,5000,927718.86,Shepherd Construction Ltd,148014,16/05/2013,10184598
INSERTED DETAIL,Capital Program ,Vehicle Workshop Extension,VWE00,Capital Contract Payments,5000,2215.00,Press & Starkey,148069,30/05/2013,10185685
INSERTED DETAIL,Resources & Corporate Governance ,Customer and Information Strategy,CIS10,Software Maintenance,0374,130.00,DataNovata Ltd,148083,16/05/2013,10184771
INSERTED DETAIL,Resources & Corporate Governance ,Support Services,CIS20,Software Maintenance,0374,390.00,DataNovata Ltd,148083,16/05/2013,10184771
INSERTED DETAIL,Housing Revenue Account ,Control Centre (HRA),CCE00,Recruitment Expenses,0012,19.95,Team Prevent UK Ltd,148151,02/05/2013,10184131
INSERTED DETAIL,Resources & Corporate Governance ,Grounds Maintenance,WGM00,Recruitment Expenses,0012,19.95,Team Prevent UK Ltd,148151,02/05/2013,10184131
INSERTED DETAIL,Resources & Corporate Governance ,Caldecott Park Cafe,WGM02,Recruitment Expenses,0012,39.90,Team Prevent UK Ltd,148151,02/05/2013,10184131
INSERTED DETAIL,Resources & Corporate Governance,Handy man,WHM00,Recruitment Expenses,0012,39.90,Team Prevent UK Ltd,148151,02/05/2013,10184131
INSERTED DETAIL,Resources & Corporate Governance,Customer Support Services,CSS00,Employee wellbeing/Other employee expenses,0021,70.00,Team Prevent UK Ltd,148151,02/05/2013,10184131
INSERTED DETAIL,Resources & Corporate Governance ,Grounds Maintenance,WGM00,Employee wellbeing/Other employee expenses,0021,707.50,Team Prevent UK Ltd,148151,02/05/2013,10184131
INSERTED DETAIL,Resources & Corporate Governance,Handy man,WHM00,Employee wellbeing/Other employee expenses,0021,17.50,Team Prevent UK Ltd,148151,02/05/2013,10184131
INSERTED DETAIL,Resources & Corporate Governance ,Street Cleansing,WSC00,Employee wellbeing/Other employee expenses,0021,92.75,Team Prevent UK Ltd,148151,02/05/2013,10184131
INSERTED DETAIL,Economy Development & Culture,The Benn Hall,BHL00,Recruitment Expenses,0012,39.90,Team Prevent UK Ltd,148151,16/05/2013,10184655
INSERTED DETAIL,Housing Revenue Account ,Control Centre (HRA),CCE00,Recruitment Expenses,0012,17.50,Team Prevent UK Ltd,148151,16/05/2013,10184655
INSERTED DETAIL,Resources & Corporate Governance ,Grounds Maintenance,WGM00,Recruitment Expenses,0012,57.40,Team Prevent UK Ltd,148151,16/05/2013,10184655
INSERTED DETAIL,Resources & Corporate Governance ,Caldecott Park Cafe,WGM02,Recruitment Expenses,0012,19.95,Team Prevent UK Ltd,148151,16/05/2013,10184655
INSERTED DETAIL,Resources & Corporate Governance,Handy man,WHM00,Recruitment Expenses,0012,99.75,Team Prevent UK Ltd,148151,16/05/2013,10184655
INSERTED DETAIL,Housing Revenue Account ,Sheltered Housing,AGP00,Employee wellbeing/Other employee expenses,0021,85.00,Team Prevent UK Ltd,148151,16/05/2013,10184655
INSERTED DETAIL,Housing Revenue Account ,Control Centre (HRA),CCE00,Employee wellbeing/Other employee expenses,0021,40.00,Team Prevent UK Ltd,148151,16/05/2013,10184655
INSERTED DETAIL,Resources & Corporate Governance,Customer Support Services,CSS00,Employee wellbeing/Other employee expenses,0021,125.00,Team Prevent UK Ltd,148151,16/05/2013,10184655
INSERTED DETAIL,Housing Revenue Account ,Property Maintenance,MAN23,Employee wellbeing/Other employee expenses,0021,85.00,Team Prevent UK Ltd,148151,16/05/2013,10184655
INSERTED DETAIL,Sustainable Environment,Regulatory Services,REG00,Employee wellbeing/Other employee expenses,0021,85.00,Team Prevent UK Ltd,148151,16/05/2013,10184655
INSERTED DETAIL,Resources & Corporate Governance ,Grounds Maintenance,WGM00,Employee wellbeing/Other employee expenses,0021,20.00,Team Prevent UK Ltd,148151,16/05/2013,10184655
INSERTED DETAIL,Resources & Corporate Governance,Handy man,WHM00,Employee wellbeing/Other employee expenses,0021,40.00,Team Prevent UK Ltd,148151,16/05/2013,10184655
INSERTED DETAIL,Resources & Corporate Governance ,Street Cleansing,WSC00,Employee wellbeing/Other employee expenses,0021,170.00,Team Prevent UK Ltd,148151,16/05/2013,10184655
INSERTED DETAIL,Resources & Corporate Governance ,Garage Salaries,WVR03,Employee wellbeing/Other employee expenses,0021,80.00,Team Prevent UK Ltd,148151,16/05/2013,10184655
INSERTED DETAIL,Resources & Corporate Governance ,Domestic Waste Collection,WWC00,Employee wellbeing/Other employee expenses,0021,165.00,Team Prevent UK Ltd,148151,16/05/2013,10184655
INSERTED DETAIL,Economy Development & Culture,The Benn Hall,BHL00,Materials,0303,559.25,Brake Bros Ltd,148172,23/05/2013,10185154
INSERTED DETAIL,Capital Program ,Corporate Property Enhancements,CPE00,Capital Contract Payments,5000,6825.00,"Gotch, Saunders & Surridge LLP , t/a GSS Architecture",148432,16/05/2013,10184478
INSERTED DETAIL,Resources & Corporate Governance ,Grounds Maintenance,WGM00,External Contractor & Operator,0742,740.00,J P Landscapes & Construction Ltd,148502,30/05/2013,10185207
INSERTED DETAIL,Sustainable Environment ,Caldecott Park/Town Centre Area,PKS00,R&M External Contractors,0100,2162.87,J P Landscapes & Construction Ltd,148502,30/05/2013,10185551
INSERTED DETAIL,Sustainable Environment ,Caldecott Park/Town Centre Area,PKS00,Maintenance of Equipment,0301,590.00,J P Landscapes & Construction Ltd,148502,30/05/2013,10185551
INSERTED DETAIL,Sustainable Environment ,Caldecott Park/Town Centre Area,PKS00,External Contractor & Operator,0742,450.00,J P Landscapes & Construction Ltd,148502,30/05/2013,10185551
INSERTED DETAIL,Resources & Corporate Governance ,IT Procurement,CMP00,IT Capital Expenditure,5025,4582.61,Intrinsic Technology Ltd,148620,09/05/2013,10184479
INSERTED DETAIL,Resources & Corporate Governance ,IT Procurement,CMP00,IT Capital Expenditure,5025,1820.00,Intrinsic Technology Ltd,148620,16/05/2013,10184747
INSERTED DETAIL,Resources & Corporate Governance ,IT Procurement,CMP00,IT Capital Expenditure,5025,1000.00,Intrinsic Technology Ltd,148620,23/05/2013,10184748
INSERTED DETAIL,Resources & Corporate Governance ,IT Procurement,CMP00,IT Capital Expenditure,5025,850.00,Intrinsic Technology Ltd,148620,23/05/2013,10184749
INSERTED DETAIL,Resources & Corporate Governance ,IT Procurement,CMP00,IT Capital Expenditure,5025,480.00,Intrinsic Technology Ltd,148620,16/05/2013,10184860
INSERTED DETAIL,Capital Program ,Viaduct Cycleways,CYC02,Capital Contract Payments,5000,853.93,Network Rail Infrastructure Ltd,148671,16/05/2013,10184509
INSERTED DETAIL,Resources & Corporate Governance ,Domestic Waste Collection,WWC00,Agency Staff,0003,783.20,Proactive Personnel Ltd,148724,16/05/2013,10184326
INSERTED DETAIL,Resources & Corporate Governance ,Domestic Waste Collection,WWC00,Agency Staff,0003,783.20,Proactive Personnel Ltd,148724,16/05/2013,10184459
INSERTED DETAIL,Resources & Corporate Governance ,Garage Internal,WVR01,Agency Staff,0003,633.60,Proactive Personnel Ltd,148724,23/05/2013,10185210
INSERTED DETAIL,Resources & Corporate Governance ,Garage Internal,WVR01,Agency Staff,0003,809.60,Proactive Personnel Ltd,148724,23/05/2013,10185211
INSERTED DETAIL,Resources & Corporate Governance ,General Financial Services,GFS00,External Contractor & Operator,0742,1875.00,Arlingclose Ltd,148743,02/05/2013,10184172
INSERTED DETAIL,Sustainable Environment ,Caldecott Park/Town Centre Area,PKS00,External Contractor & Operator,0742,1945.00,Red Kite Network Limited,148744,16/05/2013,10184545
INSERTED DETAIL,Sustainable Environment ,Caldecott Park/Town Centre Area,PKS00,External Contractor & Operator,0742,2435.00,Red Kite Network Limited,148744,16/05/2013,10184753
INSERTED DETAIL,Resources & Corporate Governance ,Human Resources Centralised Services,RES31,Training fees,0011,687.00,The Conflict Training Company Ltd,148812,30/05/2013,10184668
INSERTED DETAIL,Resources & Corporate Governance ,IT Procurement,CMP00,IT Capital Expenditure,5025,797.55,Sapphire Network Services Ltd,148862,23/05/2013,10185290
INSERTED DETAIL,Resources & Corporate Governance ,P11D software upgrade,CMP23,Capital Contract Payments,5000,829.25,Selima Ltd,148866,02/05/2013,10183877
INSERTED DETAIL,Capital Program ,Parish and Rural Capital Spending,CGR03,Capital Grants,5014,7800.00,Shilton & Barnacle Parish Council,148879,09/05/2013,10184195
INSERTED DETAIL,Capital Program ,Housing Management System,HCE08,Capital Contract Payments,5000,1000.00,Logic Software Design Ltd,148896,02/05/2013,10183768
INSERTED DETAIL,Capital Program ,Housing Management System,HCE08,Capital Contract Payments,5000,1100.00,Logic Software Design Ltd,148896,16/05/2013,10184518
INSERTED DETAIL,Resources & Corporate Governance ,IT Procurement,CMP00,IT Capital Expenditure,5025,2360.00,Computer Power Protection (Sales) Ltd,148903,16/05/2013,10184017
INSERTED DETAIL,Resources & Corporate Governance ,IT Procurement,CMP00,IT Capital Expenditure,5025,792.00,Computer Power Protection (Sales) Ltd,148903,16/05/2013,10184474
INSERTED DETAIL,Sustainable Environment ,Caldecott Park/Town Centre Area,PKS00,External Contractor & Operator,0742,1195.00,F M Deery Sports Ground Maintenance,148915,23/05/2013,10184886
INSERTED DETAIL,Capital Program ,Queen's Diamond Jubilee Leisure Centre Project,LEI03,Capital Contract Payments,5000,779.11,Portakabin Ltd,148919,02/05/2013,10183796
INSERTED DETAIL,Capital Program ,Queen's Diamond Jubilee Leisure Centre Project,LEI03,Capital Contract Payments,5000,1187.33,Portakabin Ltd,148919,16/05/2013,10184492
INSERTED DETAIL,Resources & Corporate Governance ,Support Services,CIS20,Relocation,0010,1300.00,REDACTED PERSONAL DATA,148924,02/05/2013,10183292
INSERTED DETAIL,Resources & Corporate Governance ,General Financial Services,GFS00,Subscriptions,0421,1800.00,North Kesteven District Council,148948,09/05/2013,10183930
INSERTED DETAIL,Economy Development & Culture,Visitor Centre,VSC00,Purchases for Resale,0305,431.20,Lark Rise Designs,148951,09/05/2013,10184483
INSERTED DETAIL,Resources & Corporate Governance ,Human Resources Centralised Services,RES31,Training fees,0011,582.00,Up Front Training & Coaching,148954,30/05/2013,10185543
INSERTED DETAIL,Resources & Corporate Governance,Corporate Property R&M,CPA01,R&M External Contractors,0100,1180.00,FiltaSonix UK Ltd,148964,23/05/2013,10184767
INSERTED DETAIL,,Balance Sheet,BS,Car Loan Scheme,9261,3000.00,Sapphire Car Sales,148967,09/05/2013,10184582
INSERTED DETAIL,Resources & Corporate Governance ,Grounds Maintenance,WGM00,Materials,0303,1046.47,Citysquared Limited,148968,23/05/2013,10184891
INSERTED DETAIL,Sustainable Inclusive Communities,Housing Benefit Administration,HBA00,External Legal Costs,0741,1050.00,Mr David Warner,148978,30/05/2013,10184670
INSERTED DETAIL,Resources & Corporate Governance ,Domestic Waste Collection,WWC00,Contract Hire,0220,1070.00,R D Geeson (Derby) Ltd,148979,16/05/2013,10184420
INSERTED DETAIL,Resources & Corporate Governance,Central Business Support Services,CSS15,Hospitality,0331,1272.00,LTT Vending Group,148982,23/05/2013,10185189
detail,Capital Program ,Private Sector Renovation Loans,REN00,Capital Contract Payments,5000,1840.00,Total Windows,148993,30/05/2013,10184916
,,Balance Sheet,BS,Cov & Warks Pooling Fund,9476,1051510.00,Cov & Warks Pooling Fund,28101,01/05/2013,
,Economy Development & Culture,Car Parks General,HKC01,Employment Checks,0444,924.00,CRB,28208,16/05/2013,
,,Balance Sheet,BS,Cov & Warks Pooling Fund,9476,1380109.00,Cov & Warks Pooling Fund,28219,17/05/2013,
,,Balance Sheet,BS,Business Rate Retention Scheme payment,9476,2118340.00,CLG,28237,20/05/2013,
,,Balance Sheet,BS,Business Rate Retention Scheme payment,9476,424665.00,WCC County Fund,28240,20/05/2013,
Resources & Corporate Governance ,Resources & Corporate Governance ,General Financial Services,GFS00,Payment Card Costs,0444,1200.02,Capita,28315,29/05/2013,
Sustainable Enironment,Sustainable Enironment,Caldecott Park Caf� & Benn Hall,WGM02,Purchases for Resale,0303,568.83,Booker Ltd,28316,29/05/2013,
